Workbook

Sheet город 1-3 лет
A1: СОГЛАСОВАНО | O1: УТВЕРЖДЕНО
A2: ____________________________ | O2: ООО "КРЕПЫШ"
A3: ____________________________ | O3: _______________________Ефремов В.Ю.
A5: Меню для организации питания детей от 1 до 3 лет, посещающих дошкольные образовательные учреждения Мензелинского района РТ на 2024г.
A7: 1 день, 1 неделя
A9: № рецептуры | B9: Название блюда | C9: Масса | D9: Белки | E9: Жиры | F9: Углеводы | G9: Энергетическая ценность | H9: B1 | I9: B2 | J9: A | K9: D | L9: C | M9: Na | N9: K | O9: Ca | P9: Mg | Q9: P | R9: Fe | S9: I | T9: Se | U9: F
C10: г | D10: г | E10: г | F10: г | G10: ккал | H10: мг | I10: мг | J10: мкг рет.экв | K10: мкг | L10: мг | M10: мг | N10: мг | O10: мг | P10: мг | Q10: мг | R10: мг | S10: мкг | T10: мкг | U10: мкг
B11: Понедельник, 1 неделя
B12: Завтрак | C12: 1-3
A13: 54-9к-2020 | B13: Каша вязкая молочная овсяная | C13: 150 | D13: 6.4 | E13: 8.4 | F13: 25.7 | G13: 204.6 | H13: 0.15 | I13: 0.13 | J13: 30.15 | K13: 0.1 | L13: 0.39 | M13: 259.99 | N13: 205.54 | O13: 118.23 | P13: 47.12 | Q13: 175.03 | R13: 1.38 | S13: 38.44 | T13: 10.92 | U13: 46.71
A14: 54-6о-2020 | B14: Яйцо вареное | C14: 40 | D14: 4.8 | E14: 4 | F14: 0.3 | G14: 56.6 | H14: 0.02 | I14: 0.14 | J14: 62.4 | K14: 0.88 | L14: 0 | M14: 40.74 | N14: 46.48 | O14: 19.36 | P14: 4.18 | Q14: 66.82 | R14: 0.87 | S14: 8 | T14: 10.81 | U14: 22
A15: 54-4гн-2020 | B15: Чай с молоком и сахаром | C15: 150 | D15: 1.1 | E15: 0.8 | F15: 6.4 | G15: 37.7 | H15: 0.01 | I15: 0.05 | J15: 5.06 | K15: 0 | L15: 0.21 | M15: 14.52 | N15: 53.29 | O15: 75.98 | P15: 6 | Q15: 32.05 | R15: 0.31 | S15: 3.38 | T15: 0.66 | U15: 7.5
A16: Пром. | B16: Батон простой | C16: 20 | D16: 1.6 | E16: 0.2 | F16: 9.8 | G16: 47.5 | H16: 0.03 | I16: 0.01 | J16: 0 | K16: 0 | L16: 0 | M16: 88.6 | N16: 27.2 | O16: 4.6 | P16: 6.8 | Q16: 17.8 | R16: 0.4 | S16: 0.64 | T16: 1.2 | U16: 2.9
B17: Итого за Завтрак | C17: =SUM(C13:C16) -> 360 | D17: 13.9 | E17: 13.4 | F17: 42.2 | G17: 346.4 | H17: 0.21 | I17: 0.33 | J17: 97.61 | K17: 0.98 | L17: 0.6 | M17: 403.85 | N17: 332.51 | O17: 218.17 | P17: 64.1 | Q17: 291.7 | R17: 2.96 | S17: 50.46 | T17: 23.59 | U17: 79.11
B18: Второй завтрак
A19: Пром. | B19: Молоко 2.5% | C19: 150 | D19: 4.4 | E19: 3.8 | F19: 7.2 | G19: 80 | H19: 0.06 | I19: 0.23 | J19: 33 | K19: 0 | L19: 1.95 | M19: 75 | N19: 219 | O19: 180 | P19: 21 | Q19: 135 | R19: 0.15 | S19: 13.5 | T19: 3 | U19: 30
B20: Итого за Второй завтрак | C20: 150 | D20: 4.4 | E20: 3.8 | F20: 7.2 | G20: 80 | H20: 0.06 | I20: 0.23 | J20: 33 | K20: 0 | L20: 1.95 | M20: 75 | N20: 219 | O20: 180 | P20: 21 | Q20: 135 | R20: 0.15 | S20: 13.5 | T20: 3 | U20: 30
B21: Обед
A22: 54-7з-2020 | B22: Салат из белокочанной капусты с растительным маслом | C22: 40 | D22: 1.01 | E22: 4.06 | F22: 4.16 | G22: 57.1 | H22: 0.01 | I22: 0.02 | J22: 48.9 | K22: 0 | L22: 9 | M22: 45 | N22: 137 | O22: 23 | P22: 8 | Q22: 17 | R22: 0.3 | S22: 7.15 | T22: 0.1 | U22: 8.44
A23: 54-6с-2020 | B23: Суп картофельный с клецками | C23: 150 | D23: 3.5 | E23: 2.5 | F23: 8.5 | G23: 70.2 | H23: 0.04 | I23: 0.03 | J23: 76.07 | K23: 0.04 | L23: 2.77 | M23: 43.51 | N23: 166.59 | O23: 9.96 | P23: 9.56 | Q23: 26.98 | R23: 0.41 | S23: 7.71 | T23: 0.71 | U23: 15.92
A24: 54-1г-2020 | B24: Макароны отварные | C24: 130 | D24: 4.6 | E24: 4.3 | F24: 28.4 | G24: 170.6 | H24: 0.05 | I24: 0.02 | J24: 15.91 | K24: 0.08 | L24: 0 | M24: 129.16 | N24: 46.62 | O24: 91.72 | P24: 6.24 | Q24: 35.28 | R24: 0.64 | S24: 18 | T24: 0.05 | U24: 10.33
A25: ном.рец №174 | B25: Тефтели мясные из говядины, полуфабрикат | C25: 75 | D25: 8.98 | E25: 9.49 | F25: 7.31 | G25: 150.5 | H25: 0 | I25: 0 | J25: 0 | K25: 0 | L25: 0.79 | M25: 0 | N25: 0 | O25: 0 | P25: 0 | Q25: 0 | R25: 0 | S25: 0 | T25: 0 | U25: 0
A26: 54-3соус-2020 | B26: Соус красный основной | C26: 30 | D26: 1 | E26: 0.7 | F26: 2.7 | G26: 21.2 | H26: 0.01 | I26: 0 | J26: 38.45 | K26: 0.01 | L26: 0.81 | M26: 3.7 | N26: 42.58 | O26: 2.77 | P26: 3.67 | Q26: 7.16 | R26: 0.15 | S26: 0.54 | T26: 0.13 | U26: 2.71
A27: 54-1хн-2020 | B27: Компот из смеси сухофруктов | C27: 150 | D27: 0.4 | E27: 0 | F27: 14.8 | G27: 60.7 | H27: 0 | I27: 0 | J27: 11.25 | K27: 0 | L27: 0.02 | M27: 0.04 | N27: 0.13 | O27: 81.06 | P27: 1.58 | Q27: 3.23 | R27: 0.06 | S27: 0 | T27: 0 | U27: 0
A28: Пром. | B28: Хлеб пшеничный | C28: 20 | D28: 1.5 | E28: 0.2 | F28: 9.8 | G28: 46.9 | H28: 0.02 | I28: 0.01 | J28: 0 | K28: 0 | L28: 0 | M28: 99.8 | N28: 18.6 | O28: 4 | P28: 2.8 | Q28: 13 | R28: 0.22 | S28: 0.64 | T28: 1.2 | U28: 2.9
A29: Пром. | B29: Хлеб ржаной | C29: 20 | D29: 1.3 | E29: 0.2 | F29: 6.7 | G29: 34.2 | H29: 0.04 | I29: 0.02 | J29: 0 | K29: 0 | L29: 0 | M29: 122 | N29: 49 | O29: 7 | P29: 9.4 | Q29: 31.6 | R29: 0.78 | S29: 0 | T29: 6.18 | U29: 0
B30: Итого за Обед | C30: =SUM(C22:C29) -> 615 | D30: =SUM(D22:D29) -> 22.29 | E30: =SUM(E22:E29) -> 21.45 | F30: 82.37 | G30: 611.4 | H30: 0.17 | I30: 0.1 | J30: 190.58 | K30: 0.13 | L30: 13.39 | M30: 443.21 | N30: 460.52 | O30: 219.51 | P30: 41.25 | Q30: 134.25 | R30: 2.56 | S30: 34.04 | T30: 8.37 | U30: 40.3
B31: Полдник
A32: 54-16к-2020 | B32: Каша "Дружба" | C32: 150 | D32: 3.7 | E32: 4.4 | F32: 18 | G32: 126.7 | H32: 0.05 | I32: 0.1 | J32: 20.37 | K32: 0.05 | L32: 0.4 | M32: 251.81 | N32: 117.53 | O32: 102.97 | P32: 20.31 | Q32: 92.77 | R32: 0.39 | S32: 37.41 | T32: 3.07 | U32: 23.34
A33: 54-3гн -2020 | B33: Кисель | C33: 150 | D33: 0 | E33: 0 | F33: 9.5 | G33: 37.9 | H33: 0.03 | I33: 0.03 | J33: 9.37 | K33: 0 | L33: 1.59 | M33: 0.09 | N33: 1.18 | O33: 43.75 | P33: 0.1 | Q33: 0.08 | R33: 0.02 | S33: 0 | T33: 0 | U33: 0
A34: Пром. | B34: Хлеб пшеничный | C34: 20 | D34: 1.5 | E34: 0.2 | F34: 9.8 | G34: 46.9 | H34: 0.02 | I34: 0.01 | J34: 0 | K34: 0 | L34: 0 | M34: 99.8 | N34: 18.6 | O34: 4 | P34: 2.8 | Q34: 13 | R34: 0.22 | S34: 0.64 | T34: 1.2 | U34: 2.9
A35: Пром. | B35: Фрукт (яблоко, банан, апельсин) | C35: 110 | D35: 0.4 | E35: 0.4 | F35: 9.8 | G35: 44.4 | H35: 0.03 | I35: 0.02 | J35: 5 | K35: 0 | L35: 10 | M35: 26 | N35: 278 | O35: 16 | P35: 9 | Q35: 11 | R35: 2.2 | S35: 2 | T35: 0.3 | U35: 8
B36: Итого за Полдник | C36: =SUM(C32:C35) -> 430 | D36: 5.6 | E36: 5 | F36: 47.1 | G36: 255.9 | H36: 0.13 | I36: 0.16 | J36: 34.74 | K36: 0.05 | L36: 11.99 | M36: 377.7 | N36: 415.31 | O36: 166.72 | P36: 32.21 | Q36: 116.85 | R36: 2.83 | S36: 40.05 | T36: 4.57 | U36: 34.24
B37: Итого за день | C37: =C17+C20+C30+C36 -> 1555 | D37: 46.19 | E37: 43.65 | F37: 178.87 | G37: 1293.7 | H37: 0.57 | I37: 0.82 | J37: 355.93 | K37: 1.16 | L37: 27.93 | M37: 1299.76 | N37: 1427.34 | O37: 784.4 | P37: 158.56 | Q37: 677.8 | R37: 8.5 | S37: 138.05 | T37: 39.53 | U37: 183.65
A39: 2 день, 1 неделя
A40: № рецептуры | B40: Название блюда | C40: Масса | D40: Белки | E40: Жиры | F40: Углеводы | G40: Энергетическая ценность | H40: B1 | I40: B2 | J40: A | K40: D | L40: C | M40: Na | N40: K | O40: Ca | P40: Mg | Q40: P | R40: Fe | S40: I | T40: Se | U40: F
C41: г | D41: г | E41: г | F41: г | G41: ккал | H41: мг | I41: мг | J41: мкг рет.экв | K41: мкг | L41: мг | M41: мг | N41: мг | O41: мг | P41: мг | Q41: мг | R41: мг | S41: мкг | T41: мкг | U41: мкг
B42: Вторник, 1 неделя
B43: Завтрак | C43: 1-3
A44: 54-1з-2020 | B44: Сыр твердых сортов в нарезке | C44: 10 | D44: 2.3 | E44: 3 | F44: 0 | G44: 35.8 | H44: 0 | I44: 0.03 | J44: 26 | K44: 0.1 | L44: 0.07 | M44: 81 | N44: 8.8 | O44: 88 | P44: 3.5 | Q44: 50 | R44: 0.1 | S44: 0 | T44: 1.45 | U44: 0
A45: 54-6к-2020 | B45: Каша вязкая молочная пшенная | C45: 150 | D45: 6.2 | E45: 7.6 | F45: 28.2 | G45: 206.2 | H45: 0.14 | I45: 0.11 | J45: 31.22 | K45: 0.1 | L45: 0.41 | M45: 254.01 | N45: 162.17 | O45: 107.34 | P45: 36.72 | Q45: 139.54 | R45: 0.99 | S45: 38.71 | T45: 2.33 | U45: 26.31
A46: 54-21гн-2020 | B46: Какао с молоком | C46: 150 | D46: 2.6 | E46: 1.9 | F46: 8.3 | G46: 60.8 | H46: 0.02 | I46: 0.09 | J46: 9.94 | K46: 0 | L46: 0.39 | M46: 28.76 | N46: 119.2 | O46: 107.24 | P46: 17.45 | Q46: 71.55 | R46: 0.51 | S46: 6.75 | T46: 1.32 | U46: 20.51
A47: Пром. | B47: Батон простой | C47: 20 | D47: 1.6 | E47: 0.2 | F47: 9.8 | G47: 47.5 | H47: 0.03 | I47: 0.01 | J47: 0 | K47: 0 | L47: 0 | M47: 88.6 | N47: 27.2 | O47: 4.6 | P47: 6.8 | Q47: 17.8 | R47: 0.4 | S47: 0.64 | T47: 1.2 | U47: 2.9
B48: Итого за Завтрак | C48: =SUM(C44:C47) -> 330 | D48: =SUM(D44:D47) -> 12.7 | E48: 12.7 | F48: 46.3 | G48: 350.3 | H48: 0.19 | I48: 0.24 | J48: 67.16 | K48: 0.2 | L48: 0.87 | M48: 452.37 | N48: 317.37 | O48: 307.18 | P48: 64.47 | Q48: 278.89 | R48: 2 | S48: 46.1 | T48: 6.3 | U48: 49.72
B49: Второй завтрак
A50: Пром. | B50: Ряженка 2.5% | C50: 150 | D50: 4.4 | E50: 3.8 | F50: 6.3 | G50: 76.4 | H50: 0.03 | I50: 0.2 | J50: 33 | K50: 0 | L50: 0.45 | M50: 75 | N50: 219 | O50: 186 | P50: 21 | Q50: 138 | R50: 0.15 | S50: 13.5 | T50: 1.5 | U50: 30
B51: Итого за Второй завтрак | C51: =C50 -> 150 | D51: =D50 -> 4.4 | E51: 3.8 | F51: 6.3 | G51: 76.4 | H51: 0.03 | I51: 0.2 | J51: 33 | K51: 0 | L51: 0.45 | M51: 75 | N51: 219 | O51: 186 | P51: 21 | Q51: 138 | R51: 0.15 | S51: 13.5 | T51: 1.5 | U51: 30
B52: Обед
A53: 54-13з-2020 | B53: Салат из свеклы отварной с растительным маслом | C53: 40 | D53: 0.54 | E53: 1.79 | F53: 3.04 | G53: 30.4 | H53: 0.01 | I53: 0.01 | J53: 0.46 | K53: 0 | L53: 2 | M53: 52 | N53: 91 | O53: 12 | P53: 7 | Q53: 14 | R53: 0.5 | S53: 7.99 | T53: 0.2 | U53: 7.6
A54: 54-8с-2020 | B54: Суп гороховый | C54: 150 | D54: 5 | E54: 3.4 | F54: 12.2 | G54: 99.9 | H54: 0.11 | I54: 0.04 | J54: 72.89 | K54: 0 | L54: 3.58 | M54: 71.87 | N54: 286.82 | O54: 20.21 | P54: 21.75 | Q54: 60.35 | R54: 1.11 | S54: 11.97 | T54: 1.51 | U54: 21.66
A55: 54-3м-2020 | B55: Голубцы ленивые | C55: 150 | D55: 12.7 | E55: 11.5 | F55: 9.6 | G55: 192.5 | H55: 0.05 | I55: 0.11 | J55: 13.77 | K55: 0.06 | L55: 16.56 | M55: 172.39 | N55: 406.9 | O55: 62.02 | P55: 28.46 | Q55: 138.21 | R55: 2.03 | S55: 25.4 | T55: 1.31 | U55: 53.47
A56: 54-33хн-2020 | B56: Напиток апельсиновый | C56: 150 | D56: 0.1 | E56: 0 | F56: 6 | G56: 24.8 | H56: 0 | I56: 0 | J56: 0.79 | K56: 0 | L56: 3.96 | M56: 1.67 | N56: 27.11 | O56: 55.85 | P56: 1.87 | Q56: 3.3 | R56: 0.06 | S56: 0.33 | T56: 0.07 | U56: 2.81
A57: Пром. | B57: Хлеб пшеничный | C57: 20 | D57: 1.5 | E57: 0.2 | F57: 9.8 | G57: 46.9 | H57: 0.02 | I57: 0.01 | J57: 0 | K57: 0 | L57: 0 | M57: 99.8 | N57: 18.6 | O57: 4 | P57: 2.8 | Q57: 13 | R57: 0.22 | S57: 0.64 | T57: 1.2 | U57: 2.9
A58: Пром. | B58: Хлеб ржаной | C58: 20 | D58: 1.3 | E58: 0.2 | F58: 6.7 | G58: 34.2 | H58: 0.04 | I58: 0.02 | J58: 0 | K58: 0 | L58: 0 | M58: 122 | N58: 49 | O58: 7 | P58: 9.4 | Q58: 31.6 | R58: 0.78 | S58: 0 | T58: 6.18 | U58: 0
B59: Итого за Обед | C59: =SUM(C53:C58) -> 530 | D59: =SUM(D53:D58) -> 21.14 | E59: 17.09 | F59: 47.34 | G59: =SUM(G53:G58) -> 428.7 | H59: 0.23 | I59: 0.19 | J59: 87.91 | K59: 0.06 | L59: 26.1 | M59: 519.73 | N59: 879.43 | O59: 161.08 | P59: 71.28 | Q59: 260.46 | R59: 4.7 | S59: 46.33 | T59: 10.47 | U59: 88.44
B60: Полдник
A61: 54-27м-2020 | B61: Рагу из курицы | C61: 110/40 | D61: 15.7 | E61: 5.3 | F61: 13.1 | G61: 163 | H61: 0.1 | I61: 0.08 | J61: 194.76 | K61: 0 | L61: 8.44 | M61: 211.04 | N61: 553.92 | O61: 24.14 | P61: 70.01 | Q61: 144.39 | R61: 1.6 | S61: 32.23 | T61: 12.78 | U61: 117.27
A62: Пром. | B62: Сок яблочный | C62: 150 | D62: 0.8 | E62: 0.2 | F62: 15.2 | G62: 65 | H62: 0.02 | I62: 0.02 | J62: 0 | K62: 0 | L62: 3 | M62: 9 | N62: 180 | O62: 10.5 | P62: 6 | Q62: 10.5 | R62: 2.1 | S62: 0 | T62: 0 | U62: 0
A63: Пром. | B63: Хлеб пшеничный | C63: 20 | D63: 1.5 | E63: 0.2 | F63: 9.8 | G63: 46.9 | H63: 0.02 | I63: 0.01 | J63: 0 | K63: 0 | L63: 0 | M63: 99.8 | N63: 18.6 | O63: 4 | P63: 2.8 | Q63: 13 | R63: 0.22 | S63: 0.64 | T63: 1.2 | U63: 2.9
B64: Итого за Полдник | C64: 320 | D64: =SUM(D61:D63) -> 18 | E64: =SUM(E61:E63) -> 5.7 | F64: 38.1 | G64: 274.9 | H64: 0.14 | I64: 0.11 | J64: 194.76 | K64: 0 | L64: 11.44 | M64: 319.84 | N64: 752.52 | O64: 38.64 | P64: 78.81 | Q64: 167.89 | R64: 3.92 | S64: 32.87 | T64: 13.98 | U64: 120.17
B65: Итого за день | C65: =C48+C51+C59+C64 -> 1330 | D65: 56.24 | E65: 39.29 | F65: 138.04 | G65: 1130.3 | H65: 0.59 | I65: 0.74 | J65: 382.83 | K65: 0.26 | L65: 38.86 | M65: 1366.94 | N65: 2168.32 | O65: 692.9 | P65: 235.56 | Q65: 845.24 | R65: 10.77 | S65: 138.8 | T65: 32.25 | U65: 288.33
A67: 3 день,1 неделя
A68: № рецептуры | B68: Название блюда | C68: Масса | D68: Белки | E68: Жиры | F68: Углеводы | G68: Энергетическая ценность | H68: B1 | I68: B2 | J68: A | K68: D | L68: C | M68: Na | N68: K | O68: Ca | P68: Mg | Q68: P | R68: Fe | S68: I | T68: Se | U68: F
C69: г | D69: г | E69: г | F69: г | G69: ккал | H69: мг | I69: мг | J69: мкг рет.экв | K69: мкг | L69: мг | M69: мг | N69: мг | O69: мг | P69: мг | Q69: мг | R69: мг | S69: мкг | T69: мкг | U69: мкг
B70: Среда, 1 неделя
B71: Завтрак | C71: 1-3
A72: 54-1о-2020 | B72: Омлет натуральный | C72: 150 | D72: 12.68 | E72: 17.95 | F72: 3.25 | G72: 225.2 | H72: 0.07 | I72: 0.4 | J72: 182.66 | K72: 2.18 | L72: 0 | M72: 264 | N72: 180 | O72: 110 | P72: 17 | Q72: 202 | R72: 2.1 | S72: 43.65 | T72: 26 | U72: 62.62
A73: 54-3гн-2020 | B73: Чай с лимоном и сахаром | C73: 155 | D73: 0.1 | E73: 0 | F73: 4.9 | G73: 20.4 | H73: 0 | I73: 0 | J73: 0.18 | K73: 0 | L73: 0.86 | M73: 0.71 | N73: 14.95 | O73: 48.62 | P73: 1.98 | Q73: 3.7 | R73: 0.31 | S73: 0.01 | T73: 0.02 | U73: 0.53
A74: Пром. | B74: Батон простой | C74: 20 | D74: 1.6 | E74: 0.2 | F74: 9.8 | G74: 47.5 | H74: 0.03 | I74: 0.01 | J74: 0 | K74: 0 | L74: 0 | M74: 88.6 | N74: 27.2 | O74: 4.6 | P74: 6.8 | Q74: 17.8 | R74: 0.4 | S74: 0.64 | T74: 1.2 | U74: 2.9
B75: Итого за Завтрак | C75: =SUM(C72:C74) -> 325 | D75: 14.38 | E75: 18.15 | F75: 17.95 | G75: 293.1 | H75: 0.1 | I75: 0.41 | J75: 182.84 | K75: 2.18 | L75: 0.86 | M75: 353.31 | N75: 222.15 | O75: 163.22 | P75: 25.78 | Q75: 223.5 | R75: 2.81 | S75: 44.3 | T75: 27.22 | U75: 66.05
B76: Второй завтрак
A77: Пром. | B77: Молоко 2.5% | C77: 150 | D77: 4.4 | E77: 3.8 | F77: 7.2 | G77: 80 | H77: 0.06 | I77: 0.23 | J77: 33 | K77: 0 | L77: 1.95 | M77: 75 | N77: 219 | O77: 180 | P77: 21 | Q77: 135 | R77: 0.15 | S77: 13.5 | T77: 3 | U77: 30
B78: Итого за Второй завтрак | C78: 150 | D78: 4.4 | E78: 3.8 | F78: 7.2 | G78: 80 | H78: 0.06 | I78: 0.23 | J78: 33 | K78: 0 | L78: 1.95 | M78: 75 | N78: 219 | O78: 180 | P78: 21 | Q78: 135 | R78: 0.15 | S78: 13.5 | T78: 3 | U78: 30
B79: Обед
A80: 54-16з-2020 | B80: Винегрет с растительным маслом | C80: 40 | D80: 0.47 | E80: 3.58 | F80: 2.68 | G80: 44.7 | H80: 0.01 | I80: 0 | J80: 48.59 | K80: 0 | L80: 1 | M80: 133 | N80: 85 | O80: 8 | P80: 6 | Q80: 14 | R80: 0.3 | S80: 5.24 | T80: 0 | U80: 7.9
A81: 54-1с-2020 | B81: Щи из свежей капусты со сметаной | C81: 150 | D81: 3.5 | E81: 4.2 | F81: 4.3 | G81: 69.2 | H81: 0.02 | I81: 0.02 | J81: 78.71 | K81: 0 | L81: 8.07 | M81: 73.89 | N81: 138 | O81: 28.11 | P81: 9.85 | Q81: 23.23 | R81: 0.36 | S81: 11.44 | T81: 0.25 | U81: 11.07
A82: 54-4г-2020 | B82: Каша гречневая рассыпчатая | C82: 130 | D82: 7.1 | E82: 5.5 | F82: 31.1 | G82: 202.5 | H82: 0.19 | I82: 0.1 | J82: 16.63 | K82: 0.08 | L82: 0 | M82: 129.52 | N82: 190.11 | O82: 40.4 | P82: 104.13 | Q82: 156.86 | R82: 3.51 | S82: 19.31 | T82: 3.05 | U82: 13.92
A83: №272 | B83: Биточек рубленный из говядины с соусом | C83: 50/30 | D83: 9.3 | E83: 7.1 | F83: 11.8 | G83: 148.6 | H83: 0 | I83: 0 | J83: 0.1 | K83: 0 | L83: 1.4 | M83: 0 | N83: 0 | O83: 14.7 | P83: 18.9 | Q83: 97 | R83: 1.7 | S83: 0 | T83: 0 | U83: 0
A84: №438 | B84: Напиток яблочный | C84: 150 | D84: 0.1 | E84: 0.1 | F84: 8.5 | G84: 35.6 | H84: 0 | I84: 0 | J84: 0 | K84: 0 | L84: 0.8 | M84: 0 | N84: 0 | O84: 8.9 | P84: 2.8 | Q84: 1.9 | R84: 0.4 | S84: 0 | T84: 0 | U84: 0
A85: Пром. | B85: Хлеб ржаной | C85: 20 | D85: 1.3 | E85: 0.2 | F85: 6.7 | G85: 34.2 | H85: 0.04 | I85: 0.02 | J85: 0 | K85: 0 | L85: 0 | M85: 122 | N85: 49 | O85: 7 | P85: 9.4 | Q85: 31.6 | R85: 0.78 | S85: 0 | T85: 6.18 | U85: 0
A86: Пром. | B86: Хлеб пшеничный | C86: 20 | D86: 1.5 | E86: 0.2 | F86: 9.8 | G86: 46.9 | H86: 0.02 | I86: 0.01 | J86: 0 | K86: 0 | L86: 0 | M86: 99.8 | N86: 18.6 | O86: 4 | P86: 2.8 | Q86: 13 | R86: 0.22 | S86: 0.64 | T86: 1.2 | U86: 2.9
B87: Итого за Обед | C87: 590 | D87: =SUM(D80:D86) -> 23.27 | E87: =SUM(E80:E86) -> 20.88 | F87: 74.88 | G87: 581.7 | H87: 0.28 | I87: 0.15 | J87: 144.03 | K87: 0.08 | L87: 11.27 | M87: 558.21 | N87: 480.71 | O87: 111.11 | P87: 153.88 | Q87: 337.59 | R87: 7.27 | S87: 36.63 | T87: 10.68 | U87: 35.79
B88: Полдник
A89: 54-3г-2020 | B89: Макароны отварные с сыром | C89: 150 | D89: 7.9 | E89: 6.8 | F89: 28.7 | G89: 207.7 | H89: 0.06 | I89: 0.05 | J89: 33.66 | K89: 0.19 | L89: 0.04 | M89: 240.89 | N89: 57.47 | O89: 156.28 | P89: 10.87 | Q89: 100.33 | R89: 0.77 | S89: 20.67 | T89: 1.95 | U89: 10.36
A90: 54-4гн-2020 | B90: Чай с молоком и сахаром | C90: 150 | D90: 1.1 | E90: 0.8 | F90: 6.4 | G90: 37.7 | H90: 0.01 | I90: 0.05 | J90: 5.06 | K90: 0 | L90: 0.21 | M90: 14.52 | N90: 53.29 | O90: 75.98 | P90: 6 | Q90: 32.05 | R90: 0.31 | S90: 3.38 | T90: 0.66 | U90: 7.5
A91: Пром. | B91: Хлеб пшеничный | C91: 20 | D91: 1.5 | E91: 0.2 | F91: 9.8 | G91: 46.9 | H91: 0.02 | I91: 0.01 | J91: 0 | K91: 0 | L91: 0 | M91: 99.8 | N91: 18.6 | O91: 4 | P91: 2.8 | Q91: 13 | R91: 0.22 | S91: 0.64 | T91: 1.2 | U91: 2.9
B92: Итого за Полдник | C92: =SUM(C89:C91) -> 320 | D92: 10.5 | E92: 7.8 | F92: 44.9 | G92: 292.3 | H92: 0.09 | I92: 0.11 | J92: 38.72 | K92: 0.19 | L92: 0.25 | M92: 355.21 | N92: 129.36 | O92: 236.26 | P92: 19.67 | Q92: 145.38 | R92: 1.3 | S92: 24.69 | T92: 3.81 | U92: 20.76
B93: Итого за день | C93: =C75+C78+C87+C92 -> 1385 | D93: 52.55 | E93: 50.63 | F93: 144.93 | G93: 1247.1 | H93: 0.53 | I93: 0.9 | J93: 398.59 | K93: 2.45 | L93: 14.33 | M93: 1341.73 | N93: 1051.22 | O93: 690.59 | P93: 220.33 | Q93: 841.47 | R93: 11.53 | S93: 119.12 | T93: 44.71 | U93: 152.6
A95: 4 день ,1 неделя
A96: № рецептуры | B96: Название блюда | C96: Масса | D96: Белки | E96: Жиры | F96: Углеводы | G96: Энергетическая ценность | H96: B1 | I96: B2 | J96: A | K96: D | L96: C | M96: Na | N96: K | O96: Ca | P96: Mg | Q96: P | R96: Fe | S96: I | T96: Se | U96: F
C97: г | D97: г | E97: г | F97: г | G97: ккал | H97: мг | I97: мг | J97: мкг рет.экв | K97: мкг | L97: мг | M97: мг | N97: мг | O97: мг | P97: мг | Q97: мг | R97: мг | S97: мкг | T97: мкг | U97: мкг
B98: Четверг, 1 неделя
B99: Завтрак | C99: 1-3
A100: 54-1з-2020 | B100: Сыр твердых сортов в нарезке | C100: 10 | D100: 2.3 | E100: 3 | F100: 0 | G100: 35.8 | H100: 0 | I100: 0.03 | J100: 26 | K100: 0.1 | L100: 0.07 | M100: 81 | N100: 8.8 | O100: 88 | P100: 3.5 | Q100: 50 | R100: 0.1 | S100: 0 | T100: 1.45 | U100: 0
A101: 54-7к-2020 | B101: Каша манная | C101: 150 | D101: 6.2 | E101: 3.7 | F101: 27.8 | G101: 169.4 | H101: 0.05 | I101: 0.09 | J101: 13.5 | K101: 0 | L101: 0.24 | M101: 121.43 | N101: 167.12 | O101: 152.21 | P101: 18.19 | Q101: 121.64 | R101: 0.38 | S101: 13.5 | T101: 1.32 | U101: 24
A102: 54-2гн-2020 | B102: Чай с сахаром | C102: 150 | D102: 0.1 | E102: 0 | F102: 4.8 | G102: 19.6 | H102: 0 | I102: 0 | J102: 0.11 | K102: 0 | L102: 0.02 | M102: 0.27 | N102: 7.85 | O102: 47.93 | P102: 1.44 | Q102: 2.69 | R102: 0.28 | S102: 0 | T102: 0 | U102: 0
A103: Пром. | B103: Батон простой | C103: 20 | D103: 1.6 | E103: 0.2 | F103: 9.8 | G103: 47.5 | H103: 0.03 | I103: 0.01 | J103: 0 | K103: 0 | L103: 0 | M103: 88.6 | N103: 27.2 | O103: 4.6 | P103: 6.8 | Q103: 17.8 | R103: 0.4 | S103: 0.64 | T103: 1.2 | U103: 2.9
B104: Итого за Завтрак | C104: =SUM(C100:C103) -> 330 | D104: =SUM(D100:D103) -> 10.2 | E104: 6.9 | F104: 42.4 | G104: 272.3 | H104: 0.08 | I104: 0.13 | J104: 39.61 | K104: 0.1 | L104: 0.33 | M104: 291.3 | N104: 210.97 | O104: 292.74 | P104: 29.93 | Q104: 192.13 | R104: 1.16 | S104: 14.14 | T104: 3.97 | U104: 26.9
B105: Второй завтрак
A106: Пром. | B106: Сок яблочный | C106: 150 | D106: 0.8 | E106: 0.2 | F106: 15.2 | G106: 65 | H106: 0.02 | I106: 0.02 | J106: 0 | K106: 0 | L106: 3 | M106: 9 | N106: 180 | O106: 10.5 | P106: 6 | Q106: 10.5 | R106: 2.1 | S106: 0 | T106: 0 | U106: 0
B107: Итого за Второй завтрак | C107: =C106 -> 150 | D107: =D106 -> 0.8 | E107: 0.2 | F107: 15.2 | G107: 65 | H107: 0.02 | I107: 0.02 | J107: 0 | K107: 0 | L107: 3 | M107: 9 | N107: 180 | O107: 10.5 | P107: 6 | Q107: 10.5 | R107: 2.1 | S107: 0 | T107: 0 | U107: 0
B108: Обед
A109: 54-11з-2020 | B109: Салат из моркови с яблоками и растительным маслом | C109: 40 | D109: 0.37 | E109: 4.07 | F109: 2.86 | G109: 49.5 | H109: 0.01 | I109: 0.01 | J109: 293.16 | K109: 0 | L109: 0 | M109: 45 | N109: 69 | O109: 8 | P109: 9 | Q109: 13 | R109: 0.3 | S109: 6.79 | T109: 0 | U109: 14.38
A110: 54-7с-2020 | B110: Суп картофельный с вермишелью | C110: 150 | D110: 3.9 | E110: 2.1 | F110: 13.9 | G110: 89.7 | H110: 0.06 | I110: 0.04 | J110: 73.14 | K110: 0 | L110: 5.17 | M110: 69.76 | N110: 307.81 | O110: 10.29 | P110: 15.63 | Q110: 40.92 | R110: 0.65 | S110: 12.57 | T110: 0.17 | U110: 24.54
A111: 54-21г-2020 | B111: Горошница | C111: 130 | D111: 12.5 | E111: 1.1 | F111: 29.3 | G111: 177.5 | H111: 0.38 | I111: 0.08 | J111: 0.78 | K111: 0 | L111: 0 | M111: 143.79 | N111: 471.02 | O111: 108.29 | P111: 60.59 | Q111: 186.33 | R111: 3.86 | S111: 20.65 | T111: 7.49 | U111: 19.5
A112: № Т/К 278 | B112: Зразы рубленые из кур | C112: 70 | D112: 9.5 | E112: 15.6 | F112: 8.9 | G112: 214.9 | H112: 0 | I112: 0 | J112: 0 | K112: 0 | L112: 1 | M112: 0 | N112: 0 | O112: 18.3 | P112: 15.7 | Q112: 103.2 | R112: 1.7 | S112: 0 | T112: 0 | U112: 0
A113: 54-3гн -2020 | B113: Кисель | C113: 150 | D113: 0 | E113: 0 | F113: 9.5 | G113: 37.9 | H113: 0.03 | I113: 0.03 | J113: 9.37 | K113: 0 | L113: 1.59 | M113: 0.09 | N113: 1.18 | O113: 43.75 | P113: 0.1 | Q113: 0.08 | R113: 0.02 | S113: 0 | T113: 0 | U113: 0
A114: Пром. | B114: Хлеб пшеничный | C114: 20 | D114: 1.5 | E114: 0.2 | F114: 9.8 | G114: 46.9 | H114: 0.02 | I114: 0.01 | J114: 0 | K114: 0 | L114: 0 | M114: 99.8 | N114: 18.6 | O114: 4 | P114: 2.8 | Q114: 13 | R114: 0.22 | S114: 0.64 | T114: 1.2 | U114: 2.9
A115: Пром. | B115: Хлеб ржаной | C115: 20 | D115: 1.3 | E115: 0.2 | F115: 6.7 | G115: 34.2 | H115: 0.04 | I115: 0.02 | J115: 0 | K115: 0 | L115: 0 | M115: 122 | N115: 49 | O115: 7 | P115: 9.4 | Q115: 31.6 | R115: 0.78 | S115: 0 | T115: 6.18 | U115: 0
B116: Итого за Обед | C116: =SUM(C109:C115) -> 580 | D116: 29.07 | E116: 23.27 | F116: 80.96 | G116: 650.6 | H116: 0.54 | I116: 0.19 | J116: 376.45 | K116: 0 | L116: 7.76 | M116: 480.44 | N116: 916.61 | O116: 199.63 | P116: 113.22 | Q116: 388.13 | R116: 7.53 | S116: 40.65 | T116: 15.04 | U116: 61.32
B117: Полдник
A118: 54-6т-2020 | B118: Сырники | C118: 150 | D118: 29.5 | E118: 8.6 | F118: 24.6 | G118: 293.6 | H118: 0.07 | I118: 0.31 | J118: 43.14 | K118: 0.14 | L118: 0.28 | M118: 137.7 | N118: 158.83 | O118: 206.18 | P118: 31.1 | Q118: 285.69 | R118: 0.82 | S118: 25.75 | T118: 37.55 | U118: 51.11
A119: 54-1хн-2020 | B119: Компот из смеси сухофруктов | C119: 150 | D119: 0.4 | E119: 0 | F119: 14.8 | G119: 60.7 | H119: 0 | I119: 0 | J119: 11.25 | K119: 0 | L119: 0.02 | M119: 0.04 | N119: 0.13 | O119: 81.06 | P119: 1.58 | Q119: 3.23 | R119: 0.06 | S119: 0 | T119: 0 | U119: 0
A120: Пром. | B120: Хлеб пшеничный | C120: 20 | D120: 1.5 | E120: 0.2 | F120: 9.8 | G120: 46.9 | H120: 0.02 | I120: 0.01 | J120: 0 | K120: 0 | L120: 0 | M120: 99.8 | N120: 18.6 | O120: 4 | P120: 2.8 | Q120: 13 | R120: 0.22 | S120: 0.64 | T120: 1.2 | U120: 2.9
B121: Итого за Полдник | C121: =SUM(C118:C120) -> 320 | D121: 31.4 | E121: 8.8 | F121: 49.2 | G121: 401.2 | H121: 0.09 | I121: 0.32 | J121: 54.39 | K121: 0.14 | L121: 0.3 | M121: 237.54 | N121: 177.56 | O121: 291.24 | P121: 35.48 | Q121: 301.92 | R121: 1.1 | S121: 26.39 | T121: 38.75 | U121: 54.01
B122: Итого за день | C122: =C104+C107+C116+C121 -> 1380 | D122: 71.47 | E122: 39.17 | F122: 187.76 | G122: 1389.1 | H122: 0.73 | I122: 0.66 | J122: 470.45 | K122: 0.24 | L122: 11.39 | M122: 1018.28 | N122: 1485.14 | O122: 794.11 | P122: 184.63 | Q122: 892.68 | R122: 11.89 | S122: 81.18 | T122: 57.76 | U122: 142.23
A124: 5 день ,1 неделя
A125: № рецептуры | B125: Название блюда | C125: Масса | D125: Белки | E125: Жиры | F125: Углеводы | G125: Энергетическая ценность | H125: B1 | I125: B2 | J125: A | K125: D | L125: C | M125: Na | N125: K | O125: Ca | P125: Mg | Q125: P | R125: Fe | S125: I | T125: Se | U125: F
C126: г | D126: г | E126: г | F126: г | G126: ккал | H126: мг | I126: мг | J126: мкг рет.экв | K126: мкг | L126: мг | M126: мг | N126: мг | O126: мг | P126: мг | Q126: мг | R126: мг | S126: мкг | T126: мкг | U126: мкг
B127: Пятница, 1 неделя
B128: Завтрак | C128: 1-3
A129: 54-19з-2020 | B129: Масло сливочное (порциями) | C129: 10 | D129: 0.1 | E129: 7.3 | F129: 0.1 | G129: 66.1 | H129: 0 | I129: 0.01 | J129: 45 | K129: 0.13 | L129: 0 | M129: 1.5 | N129: 3 | O129: 2.4 | P129: 0 | Q129: 3 | R129: 0.02 | S129: 0 | T129: 0.1 | U129: 0.28
A130: 54-19к-2020 | B130: Суп молочный с макаронными изделиями | C130: 150 | D130: 4.1 | E130: 3.4 | F130: 13.4 | G130: 100.7 | H130: 0.05 | I130: 0.13 | J130: 17.91 | K130: 0.02 | L130: 0.55 | M130: 84.48 | N130: 139.9 | O130: 127.57 | P130: 14.49 | Q130: 91.79 | R130: 0.27 | S130: 15.63 | T130: 1.86 | U130: 23.8
A131: 54-3гн-2020 | B131: Чай с лимоном и сахаром | C131: 155 | D131: 0.1 | E131: 0 | F131: 4.9 | G131: 20.4 | H131: 0 | I131: 0 | J131: 0.18 | K131: 0 | L131: 0.86 | M131: 0.71 | N131: 14.95 | O131: 48.62 | P131: 1.98 | Q131: 3.7 | R131: 0.31 | S131: 0.01 | T131: 0.02 | U131: 0.53
A132: Пром. | B132: Батон простой | C132: 20 | D132: 1.6 | E132: 0.2 | F132: 9.8 | G132: 47.5 | H132: 0.03 | I132: 0.01 | J132: 0 | K132: 0 | L132: 0 | M132: 88.6 | N132: 27.2 | O132: 4.6 | P132: 6.8 | Q132: 17.8 | R132: 0.4 | S132: 0.64 | T132: 1.2 | U132: 2.9
B133: Итого за Завтрак | C133: =SUM(C129:C132) -> 335 | D133: =SUM(D129:D132) -> 5.9 | E133: 10.9 | F133: 28.2 | G133: 234.7 | H133: 0.08 | I133: 0.15 | J133: 63.09 | K133: 0.15 | L133: 1.41 | M133: 175.29 | N133: 185.05 | O133: 183.19 | P133: 23.27 | Q133: 116.29 | R133: 1 | S133: 16.28 | T133: 3.18 | U133: 27.51
B134: Второй завтрак
A135: Пром. | B135: Молоко 2.5% | C135: 150 | D135: 4.4 | E135: 3.8 | F135: 7.2 | G135: 80 | H135: 0.06 | I135: 0.23 | J135: 33 | K135: 0 | L135: 1.95 | M135: 75 | N135: 219 | O135: 180 | P135: 21 | Q135: 135 | R135: 0.15 | S135: 13.5 | T135: 3 | U135: 30
B136: Итого за Второй завтрак | C136: 150 | D136: 4.4 | E136: 3.8 | F136: 7.2 | G136: 80 | H136: 0.06 | I136: 0.23 | J136: 33 | K136: 0 | L136: 1.95 | M136: 75 | N136: 219 | O136: 180 | P136: 21 | Q136: 135 | R136: 0.15 | S136: 13.5 | T136: 3 | U136: 30
B137: Обед
A138: 54-16з-2020 | B138: Винегрет с растительным маслом | C138: 40 | D138: 0.47 | E138: 3.58 | F138: 2.68 | G138: 44.7 | H138: 0.01 | I138: 0 | J138: 48.59 | K138: 0 | L138: 1 | M138: 133 | N138: 85 | O138: 8 | P138: 6 | Q138: 14 | R138: 0.3 | S138: 5.24 | T138: 0 | U138: 7.9
A139: 54-2с-2020 | B139: Борщ с капустой и картофелем со сметаной | C139: 150 | D139: 3.5 | E139: 4.3 | F139: 7.6 | G139: 82.8 | H139: 0.03 | I139: 0.03 | J139: 101 | K139: 0 | L139: 5.07 | M139: 80.27 | N139: 198.47 | O139: 25.26 | P139: 14.42 | Q139: 31.98 | R139: 0.65 | S139: 12.87 | T139: 0.3 | U139: 16.97
A140: 54-11г-2020 | B140: Картофельное пюре | C140: 130 | D140: 2.7 | E140: 4.6 | F140: 17.2 | G140: 120.8 | H140: 0.1 | I140: 0.09 | J140: 20.62 | K140: 0.08 | L140: 8.84 | M140: 140.21 | N140: 541.52 | O140: 34.22 | P140: 24.47 | Q140: 73.21 | R140: 0.89 | S140: 24.67 | T140: 0.68 | U140: 37.09
A141: 54-7р-2020 | B141: Рыба, припущенная в молоке (минтай) | C141: 75 | D141: 9.8 | E141: 5.8 | F141: 2.1 | G141: 100 | H141: 0.06 | I141: 0.08 | J141: 6.77 | K141: 0.12 | L141: 0.84 | M141: 82.98 | N141: 260.04 | O141: 51.16 | P141: 33.5 | Q141: 151.85 | R141: 0.55 | S141: 100.11 | T141: 8.88 | U141: 429.45
A142: 54-2хн-2020 | B142: Компот из кураги | C142: 150 | D142: 0.7 | E142: 0 | F142: 11.7 | G142: 50.2 | H142: 0.01 | I142: 0.02 | J142: 52.47 | K142: 0 | L142: 0.24 | M142: 1.98 | N142: 213.9 | O142: 67.87 | P142: 13.7 | Q142: 19.05 | R142: 0.43 | S142: 0 | T142: 0 | U142: 0
A143: Пром. | B143: Хлеб ржаной | C143: 20 | D143: 1.3 | E143: 0.2 | F143: 6.7 | G143: 34.2 | H143: 0.04 | I143: 0.02 | J143: 0 | K143: 0 | L143: 0 | M143: 122 | N143: 49 | O143: 7 | P143: 9.4 | Q143: 31.6 | R143: 0.78 | S143: 0 | T143: 6.18 | U143: 0
A144: Пром. | B144: Хлеб пшеничный | C144: 20 | D144: 1.5 | E144: 0.2 | F144: 9.8 | G144: 46.9 | H144: 0.02 | I144: 0.01 | J144: 0 | K144: 0 | L144: 0 | M144: 99.8 | N144: 18.6 | O144: 4 | P144: 2.8 | Q144: 13 | R144: 0.22 | S144: 0.64 | T144: 1.2 | U144: 2.9
B145: Итого за Обед | C145: =SUM(C138:C144) -> 585 | D145: =SUM(D138:D144) -> 19.97 | E145: 18.68 | F145: 57.78 | G145: =SUM(G138:G144) -> 479.6 | H145: 0.27 | I145: 0.25 | J145: 229.45 | K145: 0.2 | L145: 15.99 | M145: 660.24 | N145: 1366.53 | O145: 197.51 | P145: 104.29 | Q145: 334.69 | R145: 3.82 | S145: 143.53 | T145: 17.24 | U145: 494.31
B146: Полдник
A147: 54-13к-2020 | B147: Каша вязкая молочная пшеничная | C147: 150 | D147: 6.1 | E147: 6.9 | F147: 29 | G147: 202.7 | H147: 0.1 | I147: 0.13 | J147: 30.74 | K147: 0.1 | L147: 0.41 | M147: 256.57 | N147: 169.91 | O147: 113.68 | P147: 29.4 | Q147: 154.74 | R147: 1.64 | S147: 37.16 | T147: 24.8 | U147: 16.11
A148: 54-23гн-2020 | B148: Кофейный напиток с молоком | C148: 150 | D148: 2.4 | E148: 1.8 | F148: 8.2 | G148: 58.9 | H148: 0.02 | I148: 0.09 | J148: 9.93 | K148: 0 | L148: 0.39 | M148: 28.69 | N148: 109.8 | O148: 108.7 | P148: 14.68 | Q148: 67.27 | R148: 0.37 | S148: 6.75 | T148: 1.32 | U148: 15
A149: Пром. | B149: Хлеб пшеничный | C149: 20 | D149: 1.5 | E149: 0.2 | F149: 9.8 | G149: 46.9 | H149: 0.02 | I149: 0.01 | J149: 0 | K149: 0 | L149: 0 | M149: 99.8 | N149: 18.6 | O149: 4 | P149: 2.8 | Q149: 13 | R149: 0.22 | S149: 0.64 | T149: 1.2 | U149: 2.9
A150: № Т/К 399 | B150: Блин фаршированный сгущенным молоком П/Ф (70гр) 1 шт | C150: 70 | D150: 2.8 | E150: 3.85 | F150: 18.9 | G150: 122.5 | H150: 0.08 | I150: 0.00 | J150: 0.00 | K150: 0.00 | L150: 0.00 | M150: 0.00 | N150: 0.00 | O150: 98.45 | P150: 19.24 | Q150: 42.5 | R150: 0.48 | S150: 0.00 | T150: 0.00 | U150: 0.00
B151: Итого за Полдник | C151: =SUM(C147:C150) -> 390 | D151: =SUM(D147:D150) -> 12.8 | E151: 12.75 | F151: 65.9 | G151: 431 | H151: 0.22 | I151: 0.23 | J151: 40.67 | K151: 0.1 | L151: 0.8 | M151: 385.06 | N151: 298.31 | O151: 324.83 | P151: 66.12 | Q151: 277.51 | R151: 2.71 | S151: 44.55 | T151: 27.32 | U151: 34.01
B152: Итого за день | C152: =C133+C136+C145+C151 -> 1460 | D152: =D133+D136+D145+D151 -> 43.07 | E152: 46.13 | F152: 159.08 | G152: 1225.3 | H152: 0.63 | I152: 0.86 | J152: 366.21 | K152: 0.45 | L152: 20.15 | M152: 1295.59 | N152: 2068.89 | O152: 885.53 | P152: 214.68 | Q152: 863.49 | R152: 7.68 | S152: 217.86 | T152: 50.74 | U152: 585.83
A154: 7 день ,2 неделя
A155: № рецептуры | B155: Название блюда | C155: Масса | D155: Белки | E155: Жиры | F155: Углеводы | G155: Энергетическая ценность | H155: B1 | I155: B2 | J155: A | K155: D | L155: C | M155: Na | N155: K | O155: Ca | P155: Mg | Q155: P | R155: Fe | S155: I | T155: Se | U155: F
C156: г | D156: г | E156: г | F156: г | G156: ккал | H156: мг | I156: мг | J156: мкг рет.экв | K156: мкг | L156: мг | M156: мг | N156: мг | O156: мг | P156: мг | Q156: мг | R156: мг | S156: мкг | T156: мкг | U156: мкг
B157: Понедельник, 2 неделя
B158: Завтрак | C158: 1-3
A159: 54-3г-2020 | B159: Макароны отварные с сыром | C159: 150 | D159: 7.9 | E159: 6.8 | F159: 28.7 | G159: 207.7 | H159: 0.06 | I159: 0.05 | J159: 33.66 | K159: 0.19 | L159: 0.04 | M159: 240.89 | N159: 57.47 | O159: 156.28 | P159: 10.87 | Q159: 100.33 | R159: 0.77 | S159: 20.67 | T159: 1.95 | U159: 10.36
A160: Т/к №430 | B160: Чай с сахаром и яблоком | C160: 150 | D160: 0.2 | E160: 0 | F160: 7.8 | G160: 32.4 | H160: 0 | I160: 0 | J160: 0 | K160: 0 | L160: 0.3 | M160: 0 | N160: 0 | O160: 10.9 | P160: 5.1 | Q160: 6.6 | R160: 0.8 | S160: 0 | T160: 0 | U160: 0
A161: Пром. | B161: Батон простой | C161: 20 | D161: 1.6 | E161: 0.2 | F161: 9.8 | G161: 47.5 | H161: 0.03 | I161: 0.01 | J161: 0 | K161: 0 | L161: 0 | M161: 88.6 | N161: 27.2 | O161: 4.6 | P161: 6.8 | Q161: 17.8 | R161: 0.4 | S161: 0.64 | T161: 1.2 | U161: 2.9
B162: Итого за Завтрак | C162: =SUM(C159:C161) -> 320 | D162: 9.7 | E162: 7 | F162: 46.3 | G162: 287.6 | H162: 0.09 | I162: 0.06 | J162: 33.66 | K162: 0.19 | L162: 0.34 | M162: 329.49 | N162: 84.67 | O162: 171.78 | P162: 22.77 | Q162: 124.73 | R162: 1.97 | S162: 21.31 | T162: 3.15 | U162: 13.26
B163: Второй завтрак
A164: Пром. | B164: Сок яблочный | C164: 150 | D164: 0.8 | E164: 0.2 | F164: 15.2 | G164: 65 | H164: 0.02 | I164: 0.02 | J164: 0 | K164: 0 | L164: 3 | M164: 9 | N164: 180 | O164: 10.5 | P164: 6 | Q164: 10.5 | R164: 2.1 | S164: 0 | T164: 0 | U164: 0
B165: Итого за Второй завтрак | C165: =C164 -> 150 | D165: =D164 -> 0.8 | E165: 0.2 | F165: 15.2 | G165: 65 | H165: 0.02 | I165: 0.02 | J165: 0 | K165: 0 | L165: 3 | M165: 9 | N165: 180 | O165: 10.5 | P165: 6 | Q165: 10.5 | R165: 2.1 | S165: 0 | T165: 0 | U165: 0
B166: Обед
A167: 54-13з-2020 | B167: Салат из свеклы отварной с растительным маслом | C167: 40 | D167: 0.54 | E167: 1.79 | F167: 3.04 | G167: 30.4 | H167: 0.01 | I167: 0.01 | J167: 0.46 | K167: 0 | L167: 2 | M167: 52 | N167: 91 | O167: 12 | P167: 7 | Q167: 14 | R167: 0.5 | S167: 7.99 | T167: 0.2 | U167: 7.6
A168: 54-3с-2020 | B168: Рассольник Ленинградский | C168: 150 | D168: 3.6 | E168: 4.3 | F168: 10.2 | G168: 94.2 | H168: 0.05 | I168: 0.04 | J168: 77.95 | K168: 0 | L168: 4.16 | M168: 147.6 | N168: 251.22 | O168: 15.81 | P168: 14.78 | Q168: 38.54 | R168: 0.53 | S168: 12.45 | T168: 0.56 | U168: 21.21
A169: 54-13м-2020 | B169: Запеканка картофельная с говядиной | C169: 150 | D169: 17.7 | E169: 18 | F169: 19.8 | G169: 312.2 | H169: 0.15 | I169: 0.19 | J169: 36.29 | K169: 0.14 | L169: 9.9 | M169: 279.43 | N169: 818.72 | O169: 22.83 | P169: 42.22 | Q169: 209 | R169: 3.1 | S169: 42.84 | T169: 1.67 | U169: 91.91
A170: 54-1хн-2020 | B170: Компот из смеси сухофруктов | C170: 150 | D170: 0.4 | E170: 0 | F170: 14.8 | G170: 60.7 | H170: 0 | I170: 0 | J170: 11.25 | K170: 0 | L170: 0.02 | M170: 0.04 | N170: 0.13 | O170: 81.06 | P170: 1.58 | Q170: 3.23 | R170: 0.06 | S170: 0 | T170: 0 | U170: 0
A171: Пром. | B171: Хлеб пшеничный | C171: 20 | D171: 1.5 | E171: 0.2 | F171: 9.8 | G171: 46.9 | H171: 0.02 | I171: 0.01 | J171: 0 | K171: 0 | L171: 0 | M171: 99.8 | N171: 18.6 | O171: 4 | P171: 2.8 | Q171: 13 | R171: 0.22 | S171: 0.64 | T171: 1.2 | U171: 2.9
A172: Пром. | B172: Хлеб ржаной | C172: 20 | D172: 1.3 | E172: 0.2 | F172: 6.7 | G172: 34.2 | H172: 0.04 | I172: 0.02 | J172: 0 | K172: 0 | L172: 0 | M172: 122 | N172: 49 | O172: 7 | P172: 9.4 | Q172: 31.6 | R172: 0.78 | S172: 0 | T172: 6.18 | U172: 0
B173: Итого за Обед | C173: =SUM(C167:C172) -> 530 | D173: =SUM(D167:D172) -> 25.04 | E173: 24.49 | F173: 64.34 | G173: 578.6 | H173: 0.27 | I173: 0.27 | J173: 125.95 | K173: 0.14 | L173: 16.08 | M173: 700.87 | N173: 1228.67 | O173: 142.7 | P173: 77.78 | Q173: 309.37 | R173: 5.19 | S173: 63.92 | T173: 9.81 | U173: 123.62
B174: Полдник
A175: 54-7к-2020 | B175: Каша манная | C175: 150 | D175: 6.2 | E175: 3.7 | F175: 27.8 | G175: 169.4 | H175: 0.05 | I175: 0.09 | J175: 13.5 | K175: 0 | L175: 0.24 | M175: 121.43 | N175: 167.12 | O175: 152.21 | P175: 18.19 | Q175: 121.64 | R175: 0.38 | S175: 13.5 | T175: 1.32 | U175: 24
A176: 54-2гн-2020 | B176: Чай с сахаром | C176: 150 | D176: 0.1 | E176: 0 | F176: 4.8 | G176: 19.6 | H176: 0 | I176: 0 | J176: 0.11 | K176: 0 | L176: 0.02 | M176: 0.27 | N176: 7.85 | O176: 47.93 | P176: 1.44 | Q176: 2.69 | R176: 0.28 | S176: 0 | T176: 0 | U176: 0
A177: 54-10в-2020 | B177: Булочка ванильная | C177: 50 | D177: 3.9 | E177: 3.4 | F177: 25.4 | G177: 147.4 | H177: 0.05 | I177: 0.03 | J177: 15.93 | K177: 0.12 | L177: 0 | M177: 200.57 | N177: 42.12 | O177: 14.69 | P177: 5.43 | Q177: 34.11 | R177: 0.47 | S177: 27.8 | T177: 2.63 | U177: 9.19
A178: Пром. | B178: Хлеб пшеничный | C178: 20 | D178: 1.5 | E178: 0.2 | F178: 9.8 | G178: 46.9 | H178: 0.02 | I178: 0.01 | J178: 0 | K178: 0 | L178: 0 | M178: 99.8 | N178: 18.6 | O178: 4 | P178: 2.8 | Q178: 13 | R178: 0.22 | S178: 0.64 | T178: 1.2 | U178: 2.9
B179: Итого за Полдник | C179: =SUM(C175:C178) -> 370 | D179: =SUM(D175:D178) -> 11.7 | E179: 7.3 | F179: 67.8 | G179: 383.3 | H179: 0.12 | I179: 0.13 | J179: 29.54 | K179: 0.12 | L179: 0.26 | M179: 422.07 | N179: 235.69 | O179: 218.83 | P179: 27.86 | Q179: 171.44 | R179: 1.35 | S179: 41.94 | T179: 5.15 | U179: 36.09
B180: Итого за день | C180: =C162+C165+C173+C179 -> 1370 | D180: =D162+D165+D173+D179 -> 47.24 | E180: 38.99 | F180: 193.64 | G180: 1314.5 | H180: 0.5 | I180: 0.48 | J180: 189.15 | K180: 0.45 | L180: 19.68 | M180: 1461.43 | N180: 1729.03 | O180: 543.81 | P180: 134.41 | Q180: 616.04 | R180: 10.61 | S180: 127.17 | T180: 18.11 | U180: 172.97
A182: 8 день ,2 неделя
A183: № рецептуры | B183: Название блюда | C183: Масса | D183: Белки | E183: Жиры | F183: Углеводы | G183: Энергетическая ценность | H183: B1 | I183: B2 | J183: A | K183: D | L183: C | M183: Na | N183: K | O183: Ca | P183: Mg | Q183: P | R183: Fe | S183: I | T183: Se | U183: F
C184: г | D184: г | E184: г | F184: г | G184: ккал | H184: мг | I184: мг | J184: мкг рет.экв | K184: мкг | L184: мг | M184: мг | N184: мг | O184: мг | P184: мг | Q184: мг | R184: мг | S184: мкг | T184: мкг | U184: мкг
B185: Вторник, 2 неделя
B186: Завтрак | C186: 1-3
A187: 54-1т-2020 | B187: Запеканка из творога | C187: 150 | D187: 29.66 | E187: 12.58 | F187: 21.65 | G187: 301.2 | H187: 0.06 | I187: 0.3 | J187: 51.11 | K187: 0.16 | L187: 0 | M187: 181 | N187: 159 | O187: 223 | P187: 32 | Q187: 291 | R187: 0.8 | S187: 28.82 | T187: 39 | U187: 49.63
A188: Пром. | B188: Молоко сгущенное с сахаром | C188: 20 | D188: 1.44 | E188: 1.7 | F188: 11.1 | G188: 65.5 | H188: 0.01 | I188: 0.06 | J188: 5.64 | K188: 0 | L188: 0 | M188: 20 | N188: 61 | O188: 54 | P188: 6 | Q188: 38 | R188: 0 | S188: 1.4 | T188: 0.5 | U188: 7
A189: 54-4гн-2020 | B189: Чай с молоком и сахаром | C189: 150 | D189: 1.1 | E189: 0.8 | F189: 6.4 | G189: 37.7 | H189: 0.01 | I189: 0.05 | J189: 5.06 | K189: 0 | L189: 0.21 | M189: 14.52 | N189: 53.29 | O189: 75.98 | P189: 6 | Q189: 32.05 | R189: 0.31 | S189: 3.38 | T189: 0.66 | U189: 7.5
A190: Пром. | B190: Батон простой | C190: 20 | D190: 1.6 | E190: 0.2 | F190: 9.8 | G190: 47.5 | H190: 0.03 | I190: 0.01 | J190: 0 | K190: 0 | L190: 0 | M190: 88.6 | N190: 27.2 | O190: 4.6 | P190: 6.8 | Q190: 17.8 | R190: 0.4 | S190: 0.64 | T190: 1.2 | U190: 2.9
B191: Итого за Завтрак | C191: =SUM(C187:C190) -> 340 | D191: 33.8 | E191: 15.28 | F191: 48.95 | G191: 451.9 | H191: 0.11 | I191: 0.42 | J191: 61.81 | K191: 0.16 | L191: 0.21 | M191: 304.12 | N191: 300.49 | O191: 357.58 | P191: 50.8 | Q191: 378.85 | R191: 1.51 | S191: 34.24 | T191: 41.36 | U191: 67.03
B192: Второй завтрак
A193: Пром. | B193: Молоко 2.5% | C193: 150 | D193: 4.4 | E193: 3.8 | F193: 7.2 | G193: 80 | H193: 0.06 | I193: 0.23 | J193: 33 | K193: 0 | L193: 1.95 | M193: 75 | N193: 219 | O193: 180 | P193: 21 | Q193: 135 | R193: 0.15 | S193: 13.5 | T193: 3 | U193: 30
B194: Итого за Второй завтрак | C194: 150 | D194: 4.4 | E194: 3.8 | F194: 7.2 | G194: 80 | H194: 0.06 | I194: 0.23 | J194: 33 | K194: 0 | L194: 1.95 | M194: 75 | N194: 219 | O194: 180 | P194: 21 | Q194: 135 | R194: 0.15 | S194: 13.5 | T194: 3 | U194: 30
B195: Обед
A196: 54-9з-2020 | B196: Салат из белокочанной капусты с морковью и яблоками и растительным маслом | C196: 40 | D196: 0.54 | E196: 4.06 | F196: 2.4 | G196: 48.4 | H196: 0 | I196: 0.01 | J196: 96.65 | K196: 0 | L196: 4 | M196: 44 | N196: 88 | O196: 14 | P196: 7 | Q196: 11 | R196: 0.3 | S196: 6.57 | T196: 0.1 | U196: 7.32
A197: 54-6с-2020 | B197: Суп картофельный с клецками | C197: 150 | D197: 3.5 | E197: 2.5 | F197: 8.5 | G197: 70.2 | H197: 0.04 | I197: 0.03 | J197: 76.07 | K197: 0.04 | L197: 2.77 | M197: 43.51 | N197: 166.59 | O197: 9.96 | P197: 9.56 | Q197: 26.98 | R197: 0.41 | S197: 7.71 | T197: 0.71 | U197: 15.92
A198: 54-12м-2020 | B198: Плов с курицей | C198: 110/40 | D198: 20.4 | E198: 6.1 | F198: 24.9 | G198: 236 | H198: 0.07 | I198: 0.06 | J198: 110.25 | K198: 0 | L198: 1.77 | M198: 218.15 | N198: 287.44 | O198: 56.56 | P198: 81.25 | Q198: 175.13 | R198: 1.51 | S198: 29.83 | T198: 20.65 | U198: 126.99
A199: 54-33хн-2020 | B199: Напиток апельсиновый | C199: 150 | D199: 0.1 | E199: 0 | F199: 6 | G199: 24.8 | H199: 0 | I199: 0 | J199: 0.79 | K199: 0 | L199: 3.96 | M199: 1.67 | N199: 27.11 | O199: 55.85 | P199: 1.87 | Q199: 3.3 | R199: 0.06 | S199: 0.33 | T199: 0.07 | U199: 2.81
A200: Пром. | B200: Хлеб пшеничный | C200: 20 | D200: 1.5 | E200: 0.2 | F200: 9.8 | G200: 46.9 | H200: 0.02 | I200: 0.01 | J200: 0 | K200: 0 | L200: 0 | M200: 99.8 | N200: 18.6 | O200: 4 | P200: 2.8 | Q200: 13 | R200: 0.22 | S200: 0.64 | T200: 1.2 | U200: 2.9
A201: Пром. | B201: Хлеб ржаной | C201: 20 | D201: 1.3 | E201: 0.2 | F201: 6.7 | G201: 34.2 | H201: 0.04 | I201: 0.02 | J201: 0 | K201: 0 | L201: 0 | M201: 122 | N201: 49 | O201: 7 | P201: 9.4 | Q201: 31.6 | R201: 0.78 | S201: 0 | T201: 6.18 | U201: 0
B202: Итого за Обед | C202: 530 | D202: =SUM(D196:D201) -> 27.34 | E202: =SUM(E196:E201) -> 13.06 | F202: 58.3 | G202: 460.5 | H202: 0.17 | I202: 0.13 | J202: 283.76 | K202: 0.04 | L202: 12.5 | M202: 529.13 | N202: 636.74 | O202: 147.37 | P202: 111.88 | Q202: 261.01 | R202: 3.28 | S202: 45.08 | T202: 28.91 | U202: 155.94
B203: Полдник
A204: 54-13к-2020 | B204: Каша вязкая молочная пшеничная | C204: 150 | D204: 6.1 | E204: 6.9 | F204: 29 | G204: 202.7 | H204: 0.1 | I204: 0.13 | J204: 30.74 | K204: 0.1 | L204: 0.41 | M204: 256.57 | N204: 169.91 | O204: 113.68 | P204: 29.4 | Q204: 154.74 | R204: 1.64 | S204: 37.16 | T204: 24.8 | U204: 16.11
A205: 54-3гн-2020 | B205: Чай с лимоном и сахаром | C205: 155 | D205: 0.2 | E205: 0 | F205: 5 | G205: 20.9 | H205: 0 | I205: 0.01 | J205: 0.29 | K205: 0 | L205: 0.87 | M205: 0.95 | N205: 22.67 | O205: 50.25 | P205: 3.42 | Q205: 6.39 | R205: 0.58 | S205: 0.01 | T205: 0.02 | U205: 0.53
A206: Пром. | B206: Хлеб пшеничный | C206: 20 | D206: 1.5 | E206: 0.2 | F206: 9.8 | G206: 46.9 | H206: 0.02 | I206: 0.01 | J206: 0 | K206: 0 | L206: 0 | M206: 99.8 | N206: 18.6 | O206: 4 | P206: 2.8 | Q206: 13 | R206: 0.22 | S206: 0.64 | T206: 1.2 | U206: 2.9
A207: Пром. | B207: Сушка простая | C207: 12 | D207: 1.31 | E207: 0.16 | F207: 8.26 | G207: 39.7 | H207: 0.02 | I207: 0.01 | J207: 0 | K207: 0 | L207: 0 | M207: 55 | N207: 18 | O207: 3 | P207: 5 | Q207: 13 | R207: 0.3 | S207: 0 | T207: 0 | U207: 0
B208: Итого за Полдник | C208: =SUM(C204:C207) -> 337 | D208: 9.11 | E208: 7.26 | F208: 52.06 | G208: 310.2 | H208: 0.14 | I208: 0.16 | J208: 31.03 | K208: 0.1 | L208: 1.28 | M208: 412.32 | N208: 229.18 | O208: 170.93 | P208: 40.62 | Q208: 187.13 | R208: 2.74 | S208: 37.81 | T208: 26.02 | U208: 19.54
B209: Итого за день | C209: =C191+C194+C202+C208 -> 1357 | D209: 74.65 | E209: 39.4 | F209: 166.51 | G209: 1302.6 | H209: 0.48 | I209: 0.94 | J209: 409.6 | K209: 0.3 | L209: 15.94 | M209: 1320.57 | N209: 1385.41 | O209: 855.88 | P209: 224.3 | Q209: 961.99 | R209: 7.68 | S209: 130.63 | T209: 99.29 | U209: 272.51
... 95 more rows

Sheet город 3-7 лет
A1: СОГЛАСОВАНО | O1: УТВЕРЖДЕНО
A2: ____________________________ | O2: ООО "КРЕПЫШ"
A3: ____________________________ | O3: _______________________Ефремов В.Ю.
A5: Меню для организации питания детей от 3 до 7 лет, посещающих дошкольные образовательные учреждения Мензелинского района РТ на 2024г.
A7: 1 день, 1 неделя
A9: № рецептуры | B9: Название блюда | C9: Масса | D9: Белки | E9: Жиры | F9: Углеводы | G9: Энергетическая ценность | H9: B1 | I9: B2 | J9: A | K9: D | L9: C | M9: Na | N9: K | O9: Ca | P9: Mg | Q9: P | R9: Fe | S9: I | T9: Se | U9: F
C10: г | D10: г | E10: г | F10: г | G10: ккал | H10: мг | I10: мг | J10: мкг рет.экв | K10: мкг | L10: мг | M10: мг | N10: мг | O10: мг | P10: мг | Q10: мг | R10: мг | S10: мкг | T10: мкг | U10: мкг
B11: Понедельник, 1 неделя
B12: Завтрак | C12: 3-7
A13: 54-9к-2020 | B13: Каша вязкая молочная овсяная | C13: 200 | D13: 8.6 | E13: 11.3 | F13: 34.3 | G13: 272.8 | H13: 0.21 | I13: 0.17 | J13: 40.2 | K13: 0.13 | L13: 0.52 | M13: 346.66 | N13: 274.05 | O13: 157.64 | P13: 62.83 | Q13: 233.38 | R13: 1.83 | S13: 51.25 | T13: 14.56 | U13: 62.28
A14: 54-6о-2020 | B14: Яйцо вареное | C14: 40 | D14: 4.8 | E14: 4 | F14: 0.3 | G14: 56.6 | H14: 0.02 | I14: 0.14 | J14: 62.4 | K14: 0.88 | L14: 0 | M14: 40.74 | N14: 46.48 | O14: 19.36 | P14: 4.18 | Q14: 66.82 | R14: 0.87 | S14: 8 | T14: 10.81 | U14: 22
A15: 54-4гн-2020 | B15: Чай с молоком и сахаром | C15: 180 | D15: 1.3 | E15: 1 | F15: 7.7 | G15: 45.2 | H15: 0.01 | I15: 0.06 | J15: 6.08 | K15: 0 | L15: 0.25 | M15: 17.43 | N15: 63.95 | O15: 91.17 | P15: 7.2 | Q15: 38.46 | R15: 0.38 | S15: 4.05 | T15: 0.79 | U15: 9
A16: Пром. | B16: Батон простой | C16: 20 | D16: 1.6 | E16: 0.2 | F16: 9.8 | G16: 47.5 | H16: 0.03 | I16: 0.01 | J16: 0 | K16: 0 | L16: 0 | M16: 88.6 | N16: 27.2 | O16: 4.6 | P16: 6.8 | Q16: 17.8 | R16: 0.4 | S16: 0.64 | T16: 1.2 | U16: 2.9
B17: Итого за Завтрак | C17: =SUM(C13:C16) -> 440 | D17: 16.3 | E17: 16.5 | F17: 52.1 | G17: 422.1 | H17: 0.27 | I17: 0.38 | J17: 108.68 | K17: 1.01 | L17: 0.77 | M17: 493.43 | N17: 411.68 | O17: 272.77 | P17: 81.01 | Q17: 356.46 | R17: 3.48 | S17: 63.94 | T17: 27.36 | U17: 96.18
B18: Второй завтрак
A19: Пром. | B19: Молоко 2.5% | C19: 150 | D19: 4.4 | E19: 3.8 | F19: 7.2 | G19: 80 | H19: 0.06 | I19: 0.23 | J19: 33 | K19: 0 | L19: 1.95 | M19: 75 | N19: 219 | O19: 180 | P19: 21 | Q19: 135 | R19: 0.15 | S19: 13.5 | T19: 3 | U19: 30
B20: Итого за Второй завтрак | C20: 150 | D20: 4.4 | E20: 3.8 | F20: 7.2 | G20: 80 | H20: 0.06 | I20: 0.23 | J20: 33 | K20: 0 | L20: 1.95 | M20: 75 | N20: 219 | O20: 180 | P20: 21 | Q20: 135 | R20: 0.15 | S20: 13.5 | T20: 3 | U20: 30
B21: Обед
A22: 54-7з-2020 | B22: Салат из белокочанной капусты с растительным маслом | C22: 50 | D22: 1.27 | E22: 5.08 | F22: 5.2 | G22: 71.5 | H22: 0.01 | I22: 0.02 | J22: 61.13 | K22: 0 | L22: 11 | M22: 56 | N22: 171 | O22: 29 | P22: 12 | Q22: 22 | R22: 0.3 | S22: 8.95 | T22: 0.2 | U22: 10.55
A23: 54-6с-2020 | B23: Суп картофельный с клецками | C23: 200 | D23: 4.6 | E23: 3.3 | F23: 11.4 | G23: 93.6 | H23: 0.05 | I23: 0.04 | J23: 101.43 | K23: 0.05 | L23: 3.69 | M23: 58.01 | N23: 222.12 | O23: 13.28 | P23: 12.74 | Q23: 35.97 | R23: 0.54 | S23: 10.28 | T23: 0.94 | U23: 21.22
A24: 54-1г-2020 | B24: Макароны отварные | C24: 150 | D24: 5.3 | E24: 4.9 | F24: 32.8 | G24: 196.8 | H24: 0.06 | I24: 0.02 | J24: 18.36 | K24: 0.09 | L24: 0 | M24: 149.04 | N24: 53.8 | O24: 105.83 | P24: 7.19 | Q24: 40.7 | R24: 0.73 | S24: 20.77 | T24: 0.06 | U24: 11.92
A25: ном.рец №174 | B25: Тефтели мясные из говядины, полуфабрикат | C25: 75 | D25: 8.98 | E25: 9.49 | F25: 7.31 | G25: 150.5 | H25: 0 | I25: 0 | J25: 0 | K25: 0 | L25: 0.79 | M25: 0 | N25: 0 | O25: 0 | P25: 0 | Q25: 0 | R25: 0 | S25: 0 | T25: 0 | U25: 0
A26: 54-3соус-2020 | B26: Соус красный основной | C26: 30 | D26: 1 | E26: 0.7 | F26: 2.7 | G26: 21.2 | H26: 0.01 | I26: 0 | J26: 38.45 | K26: 0.01 | L26: 0.81 | M26: 3.7 | N26: 42.58 | O26: 2.77 | P26: 3.67 | Q26: 7.16 | R26: 0.15 | S26: 0.54 | T26: 0.13 | U26: 2.71
A27: 54-1хн-2020 | B27: Компот из смеси сухофруктов | C27: 180 | D27: 0.4 | E27: 0 | F27: 17.8 | G27: 72.9 | H27: 0 | I27: 0 | J27: 13.5 | K27: 0 | L27: 0.02 | M27: 0.05 | N27: 0.16 | O27: 97.27 | P27: 1.9 | Q27: 3.88 | R27: 0.08 | S27: 0 | T27: 0 | U27: 0
A28: Пром. | B28: Хлеб пшеничный | C28: 20 | D28: 1.5 | E28: 0.2 | F28: 9.8 | G28: 46.9 | H28: 0.02 | I28: 0.01 | J28: 0 | K28: 0 | L28: 0 | M28: 99.8 | N28: 18.6 | O28: 4 | P28: 2.8 | Q28: 13 | R28: 0.22 | S28: 0.64 | T28: 1.2 | U28: 2.9
A29: Пром. | B29: Хлеб ржаной | C29: 20 | D29: 1.3 | E29: 0.2 | F29: 6.7 | G29: 34.2 | H29: 0.04 | I29: 0.02 | J29: 0 | K29: 0 | L29: 0 | M29: 122 | N29: 49 | O29: 7 | P29: 9.4 | Q29: 31.6 | R29: 0.78 | S29: 0 | T29: 6.18 | U29: 0
B30: Итого за Обед | C30: =SUM(C22:C29) -> 725 | D30: =SUM(D22:D29) -> 24.35 | E30: =SUM(E22:E29) -> 23.87 | F30: 93.71 | G30: 687.6 | H30: 0.19 | I30: 0.11 | J30: 232.87 | K30: 0.15 | L30: 16.31 | M30: 488.6 | N30: 557.26 | O30: 259.15 | P30: 49.7 | Q30: 154.31 | R30: 2.8 | S30: 41.18 | T30: 8.71 | U30: 49.3
B31: Полдник
A32: 54-16к-2020 | B32: Каша "Дружба" | C32: 200 | D32: 5 | E32: 5.9 | F32: 24 | G32: 168.9 | H32: 0.07 | I32: 0.14 | J32: 27.16 | K32: 0.07 | L32: 0.53 | M32: 335.75 | N32: 156.71 | O32: 137.29 | P32: 27.08 | Q32: 123.7 | R32: 0.52 | S32: 49.89 | T32: 4.09 | U32: 31.12
A33: 54-3гн -2020 | B33: Кисель | C33: 180 | D33: 0 | E33: 0 | F33: 11.4 | G33: 45.5 | H33: 0.03 | I33: 0.04 | J33: 11.25 | K33: 0 | L33: 1.9 | M33: 0.11 | N33: 1.42 | O33: 52.5 | P33: 0.12 | Q33: 0.09 | R33: 0.03 | S33: 0 | T33: 0.01 | U33: 0
A34: Пром. | B34: Хлеб пшеничный | C34: 20 | D34: 1.5 | E34: 0.2 | F34: 9.8 | G34: 46.9 | H34: 0.02 | I34: 0.01 | J34: 0 | K34: 0 | L34: 0 | M34: 99.8 | N34: 18.6 | O34: 4 | P34: 2.8 | Q34: 13 | R34: 0.22 | S34: 0.64 | T34: 1.2 | U34: 2.9
A35: Пром. | B35: Фрукт (яблоко, банан, апельсин) | C35: 120 | D35: 0.4 | E35: 0.4 | F35: 9.8 | G35: 44.4 | H35: 0.03 | I35: 0.02 | J35: 5 | K35: 0 | L35: 10 | M35: 26 | N35: 278 | O35: 16 | P35: 9 | Q35: 11 | R35: 2.2 | S35: 2 | T35: 0.3 | U35: 8
B36: Итого за Полдник | C36: =SUM(C32:C35) -> 520 | D36: 6.9 | E36: 6.5 | F36: 55 | G36: 305.7 | H36: 0.15 | I36: 0.21 | J36: 43.41 | K36: 0.07 | L36: 12.43 | M36: 461.66 | N36: 454.73 | O36: 209.79 | P36: 39 | Q36: 147.79 | R36: 2.97 | S36: 52.53 | T36: 5.6 | U36: 42.02
B37: Итого за день | C37: =C17+C20+C30+C36 -> 1835 | D37: 51.95 | E37: 50.67 | F37: 208.01 | G37: 1495.4 | H37: 0.67 | I37: 0.93 | J37: 417.96 | K37: 1.23 | L37: 31.46 | M37: 1518.69 | N37: 1642.67 | O37: 921.71 | P37: 190.71 | Q37: 793.56 | R37: 9.4 | S37: 171.15 | T37: 44.67 | U37: 217.5
A39: 2 день , 1 неделя
A40: № рецептуры | B40: Название блюда | C40: Масса | D40: Белки | E40: Жиры | F40: Углеводы | G40: Энергетическая ценность | H40: B1 | I40: B2 | J40: A | K40: D | L40: C | M40: Na | N40: K | O40: Ca | P40: Mg | Q40: P | R40: Fe | S40: I | T40: Se | U40: F
C41: г | D41: г | E41: г | F41: г | G41: ккал | H41: мг | I41: мг | J41: мкг рет.экв | K41: мкг | L41: мг | M41: мг | N41: мг | O41: мг | P41: мг | Q41: мг | R41: мг | S41: мкг | T41: мкг | U41: мкг
B42: Вторник, 1 неделя
B43: Завтрак | C43: 3-7
A44: 54-1з-2020 | B44: Сыр твердых сортов в нарезке | C44: 10 | D44: 2.3 | E44: 3 | F44: 0 | G44: 35.8 | H44: 0 | I44: 0.03 | J44: 26 | K44: 0.1 | L44: 0.07 | M44: 81 | N44: 8.8 | O44: 88 | P44: 3.5 | Q44: 50 | R44: 0.1 | S44: 0 | T44: 1.45 | U44: 0
A45: 54-6к-2020 | B45: Каша вязкая молочная пшенная | C45: 200 | D45: 8.3 | E45: 10.1 | F45: 37.6 | G45: 274.9 | H45: 0.18 | I45: 0.15 | J45: 41.63 | K45: 0.13 | L45: 0.54 | M45: 338.68 | N45: 216.23 | O45: 143.12 | P45: 48.96 | Q45: 186.05 | R45: 1.32 | S45: 51.61 | T45: 3.11 | U45: 35.08
A46: 54-21гн-2020 | B46: Какао с молоком | C46: 180 | D46: 3.1 | E46: 2.3 | F46: 9.9 | G46: 72.9 | H46: 0.03 | I46: 0.11 | J46: 11.93 | K46: 0 | L46: 0.47 | M46: 34.51 | N46: 143.04 | O46: 128.68 | P46: 20.95 | Q46: 85.86 | R46: 0.61 | S46: 8.1 | T46: 1.58 | U46: 24.62
A47: Пром. | B47: Батон простой | C47: 20 | D47: 1.6 | E47: 0.2 | F47: 9.8 | G47: 47.5 | H47: 0.03 | I47: 0.01 | J47: 0 | K47: 0 | L47: 0 | M47: 88.6 | N47: 27.2 | O47: 4.6 | P47: 6.8 | Q47: 17.8 | R47: 0.4 | S47: 0.64 | T47: 1.2 | U47: 2.9
B48: Итого за Завтрак | C48: =SUM(C44:C47) -> 410 | D48: =SUM(D44:D47) -> 15.3 | E48: 15.6 | F48: 57.3 | G48: 431.1 | H48: 0.24 | I48: 0.3 | J48: 79.56 | K48: 0.23 | L48: 1.08 | M48: 542.79 | N48: 395.27 | O48: 364.4 | P48: 80.21 | Q48: 339.71 | R48: 2.43 | S48: 60.35 | T48: 7.34 | U48: 62.6
B49: Второй завтрак
A50: Пром. | B50: Ряженка | C50: 150 | D50: 4.4 | E50: 3.8 | F50: 6.3 | G50: 76.4 | H50: 0.03 | I50: 0.2 | J50: 33 | K50: 0 | L50: 0.45 | M50: 75 | N50: 219 | O50: 186 | P50: 21 | Q50: 138 | R50: 0.15 | S50: 13.5 | T50: 1.5 | U50: 30
B51: Итого за Второй завтрак | C51: =C50 -> 150 | D51: =D50 -> 4.4 | E51: 3.8 | F51: 6.3 | G51: 76.4 | H51: 0.03 | I51: 0.2 | J51: 33 | K51: 0 | L51: 0.45 | M51: 75 | N51: 219 | O51: 186 | P51: 21 | Q51: 138 | R51: 0.15 | S51: 13.5 | T51: 1.5 | U51: 30
B52: Обед
A53: 54-13з-2020 | B53: Салат из свеклы отварной с растительным маслом | C53: 50 | D53: 0.67 | E53: 2.24 | F53: 3.8 | G53: 38.1 | H53: 0.01 | I53: 0.02 | J53: 0.57 | K53: 0 | L53: 2 | M53: 66 | N53: 114 | O53: 16 | P53: 9 | Q53: 18 | R53: 0.6 | S53: 10 | T53: 0.3 | U53: 9.5
A54: 54-8с-2020 | B54: Суп гороховый | C54: 200 | D54: 6.7 | E54: 4.6 | F54: 16.3 | G54: 133.1 | H54: 0.14 | I54: 0.05 | J54: 97.19 | K54: 0 | L54: 4.77 | M54: 95.82 | N54: 382.43 | O54: 26.94 | P54: 29 | Q54: 80.47 | R54: 1.48 | S54: 15.96 | T54: 2.01 | U54: 28.88
A55: 54-3м-2020 | B55: Голубцы ленивые | C55: 180 | D55: 15.2 | E55: 13.8 | F55: 11.5 | G55: 230.9 | H55: 0.06 | I55: 0.13 | J55: 16.52 | K55: 0.07 | L55: 19.87 | M55: 206.87 | N55: 488.28 | O55: 74.42 | P55: 34.15 | Q55: 165.85 | R55: 2.43 | S55: 30.47 | T55: 1.58 | U55: 64.16
A56: 54-33хн-2020 | B56: Напиток апельсиновый | C56: 180 | D56: 0.2 | E56: 0 | F56: 7.2 | G56: 29.7 | H56: 0.01 | I56: 0 | J56: 0.95 | K56: 0 | L56: 4.75 | M56: 2 | N56: 32.53 | O56: 67.02 | P56: 2.24 | Q56: 3.96 | R56: 0.07 | S56: 0.4 | T56: 0.09 | U56: 3.37
A57: Пром. | B57: Хлеб пшеничный | C57: 20 | D57: 1.5 | E57: 0.2 | F57: 9.8 | G57: 46.9 | H57: 0.02 | I57: 0.01 | J57: 0 | K57: 0 | L57: 0 | M57: 99.8 | N57: 18.6 | O57: 4 | P57: 2.8 | Q57: 13 | R57: 0.22 | S57: 0.64 | T57: 1.2 | U57: 2.9
A58: Пром. | B58: Хлеб ржаной | C58: 20 | D58: 1.3 | E58: 0.2 | F58: 6.7 | G58: 34.2 | H58: 0.04 | I58: 0.02 | J58: 0 | K58: 0 | L58: 0 | M58: 122 | N58: 49 | O58: 7 | P58: 9.4 | Q58: 31.6 | R58: 0.78 | S58: 0 | T58: 6.18 | U58: 0
B59: Итого за Обед | C59: =SUM(C53:C58) -> 650 | D59: =SUM(D53:D58) -> 25.57 | E59: 21.04 | F59: 55.3 | G59: 512.9 | H59: 0.28 | I59: 0.23 | J59: 115.23 | K59: 0.07 | L59: 31.39 | M59: 592.49 | N59: 1084.84 | O59: 195.38 | P59: 86.59 | Q59: 312.88 | R59: 5.58 | S59: 57.47 | T59: 11.36 | U59: 108.81
B60: Полдник
A61: 54-27м-2020 | B61: Рагу из курицы | C61: 140/60 | D61: 21 | E61: 7 | F61: 17.5 | G61: 217.3 | H61: 0.14 | I61: 0.11 | J61: 259.68 | K61: 0 | L61: 11.25 | M61: 281.38 | N61: 738.57 | O61: 32.19 | P61: 93.35 | Q61: 192.51 | R61: 2.13 | S61: 42.97 | T61: 17.04 | U61: 156.36
A62: Пром. | B62: Сок яблочный | C62: 180 | D62: 0.9 | E62: 0.2 | F62: 18.2 | G62: 77.9 | H62: 0.02 | I62: 0.02 | J62: 0 | K62: 0 | L62: 3.6 | M62: 10.8 | N62: 216 | O62: 12.6 | P62: 7.2 | Q62: 12.6 | R62: 2.52 | S62: 0 | T62: 0 | U62: 0
A63: Пром. | B63: Хлеб пшеничный | C63: 20 | D63: 1.5 | E63: 0.2 | F63: 9.8 | G63: 46.9 | H63: 0.02 | I63: 0.01 | J63: 0 | K63: 0 | L63: 0 | M63: 99.8 | N63: 18.6 | O63: 4 | P63: 2.8 | Q63: 13 | R63: 0.22 | S63: 0.64 | T63: 1.2 | U63: 2.9
B64: Итого за Полдник | C64: 400 | D64: =SUM(D61:D63) -> 23.4 | E64: =SUM(E61:E63) -> 7.4 | F64: 45.5 | G64: 342.1 | H64: 0.18 | I64: 0.14 | J64: 259.68 | K64: 0 | L64: 14.85 | M64: 391.98 | N64: 973.17 | O64: 48.79 | P64: 103.35 | Q64: 218.11 | R64: 4.87 | S64: 43.61 | T64: 18.24 | U64: 159.26
B65: Итого за день | C65: =C48+C51+C59+C64 -> 1610 | D65: 68.67 | E65: 47.84 | F65: 164.4 | G65: 1362.5 | H65: 0.73 | I65: 0.87 | J65: 487.47 | K65: 0.3 | L65: 47.77 | M65: 1602.26 | N65: 2672.28 | O65: 794.57 | P65: 291.15 | Q65: 1008.7 | R65: 13.03 | S65: 174.93 | T65: 38.44 | U65: 360.67
A67: 3 день , 1 неделя
A68: № рецептуры | B68: Название блюда | C68: Масса | D68: Белки | E68: Жиры | F68: Углеводы | G68: Энергетическая ценность | H68: B1 | I68: B2 | J68: A | K68: D | L68: C | M68: Na | N68: K | O68: Ca | P68: Mg | Q68: P | R68: Fe | S68: I | T68: Se | U68: F
C69: г | D69: г | E69: г | F69: г | G69: ккал | H69: мг | I69: мг | J69: мкг рет.экв | K69: мкг | L69: мг | M69: мг | N69: мг | O69: мг | P69: мг | Q69: мг | R69: мг | S69: мкг | T69: мкг | U69: мкг
B70: Среда, 1 неделя
B71: Завтрак | C71: 3-7
A72: 54-1о-2020 | B72: Омлет натуральный | C72: 170 | D72: 14.37 | E72: 20.35 | F72: 3.68 | G72: 255.2 | H72: 0.07 | I72: 0.46 | J72: 207.01 | K72: 2.47 | L72: 0 | M72: 300 | N72: 204 | O72: 125 | P72: 19 | Q72: 229 | R72: 2.4 | S72: 49.48 | T72: 29.6 | U72: 70.97
A73: 54-3гн-2020 | B73: Чай с лимоном и сахаром | C73: 186 | D73: 0.1 | E73: 0 | F73: 5.9 | G73: 24.5 | H73: 0 | I73: 0 | J73: 0.21 | K73: 0 | L73: 1.03 | M73: 0.86 | N73: 17.94 | O73: 58.34 | P73: 2.38 | Q73: 4.44 | R73: 0.37 | S73: 0.01 | T73: 0.02 | U73: 0.63
A74: Пром. | B74: Батон простой | C74: 20 | D74: 1.6 | E74: 0.2 | F74: 9.8 | G74: 47.5 | H74: 0.03 | I74: 0.01 | J74: 0 | K74: 0 | L74: 0 | M74: 88.6 | N74: 27.2 | O74: 4.6 | P74: 6.8 | Q74: 17.8 | R74: 0.4 | S74: 0.64 | T74: 1.2 | U74: 2.9
B75: Итого за Завтрак | C75: =SUM(C72:C74) -> 376 | D75: =SUM(D72:D74) -> 16.07 | E75: =SUM(E72:E74) -> 20.55 | F75: =SUM(F72:F74) -> 19.38 | G75: =SUM(G72:G74) -> 327.2 | H75: =SUM(H72:H74) -> 0.1 | I75: =SUM(I72:I74) -> 0.47 | J75: =SUM(J72:J74) -> 207.22 | K75: =SUM(K72:K74) -> 2.47 | L75: =SUM(L72:L74) -> 1.03 | M75: =SUM(M72:M74) -> 389.46 | N75: =SUM(N72:N74) -> 249.14 | O75: =SUM(O72:O74) -> 187.94 | P75: =SUM(P72:P74) -> 28.18 | Q75: =SUM(Q72:Q74) -> 251.24 | R75: =SUM(R72:R74) -> 3.17 | S75: =SUM(S72:S74) -> 50.13 | T75: =SUM(T72:T74) -> 30.82 | U75: =SUM(U72:U74) -> 74.5
B76: Второй завтрак
A77: Пром. | B77: Молоко 2.5% | C77: 150 | D77: 4.4 | E77: 3.8 | F77: 7.2 | G77: 80 | H77: 0.06 | I77: 0.23 | J77: 33 | K77: 0 | L77: 1.95 | M77: 75 | N77: 219 | O77: 180 | P77: 21 | Q77: 135 | R77: 0.15 | S77: 13.5 | T77: 3 | U77: 30
B78: Итого за Второй завтрак | C78: 150 | D78: 4.4 | E78: 3.8 | F78: 7.2 | G78: 80 | H78: 0.06 | I78: 0.23 | J78: 33 | K78: 0 | L78: 1.95 | M78: 75 | N78: 219 | O78: 180 | P78: 21 | Q78: 135 | R78: 0.15 | S78: 13.5 | T78: 3 | U78: 30
B79: Обед
A80: 54-16з-2020 | B80: Винегрет с растительным маслом | C80: 50 | D80: 0.59 | E80: 4.47 | F80: 3.33 | G80: 56 | H80: 0.01 | I80: 0.01 | J80: 60.74 | K80: 0 | L80: 1 | M80: 168 | N80: 107 | O80: 9 | P80: 8 | Q80: 18 | R80: 0.4 | S80: 6.56 | T80: 0 | U80: 9.88
A81: 54-1с-2020 | B81: Щи из свежей капусты со сметаной | C81: 200 | D81: 4.7 | E81: 5.6 | F81: 5.7 | G81: 92.2 | H81: 0.02 | I81: 0.03 | J81: 104.95 | K81: 0 | L81: 10.76 | M81: 98.52 | N81: 184 | O81: 37.48 | P81: 13.13 | Q81: 30.97 | R81: 0.48 | S81: 15.25 | T81: 0.34 | U81: 14.76
A82: 54-4г-2020 | B82: Каша гречневая рассыпчатая | C82: 150 | D82: 8.2 | E82: 6.3 | F82: 35.9 | G82: 233.7 | H82: 0.21 | I82: 0.12 | J82: 19.19 | K82: 0.09 | L82: 0 | M82: 149.45 | N82: 219.36 | O82: 46.62 | P82: 120.16 | Q82: 180.99 | R82: 4.05 | S82: 22.28 | T82: 3.52 | U82: 16.06
A83: №272 | B83: Биточек рубленный из говядины с соусом | C83: 50/30 | D83: 9.3 | E83: 7.1 | F83: 11.8 | G83: 148.6 | H83: 0 | I83: 0 | J83: 0.1 | K83: 0 | L83: 1.4 | M83: 0 | N83: 0 | O83: 14.7 | P83: 18.9 | Q83: 97 | R83: 1.7 | S83: 0 | T83: 0 | U83: 0
A84: №438 | B84: Напиток яблочный | C84: 180 | D84: 0.1 | E84: 0.1 | F84: 10.2 | G84: 42.8 | H84: 0 | I84: 0 | J84: 0 | K84: 0 | L84: 0.9 | M84: 0 | N84: 0 | O84: 10.8 | P84: 3.2 | Q84: 2.3 | R84: 0.5 | S84: 0 | T84: 0 | U84: 0
A85: Пром. | B85: Хлеб ржаной | C85: 20 | D85: 1.3 | E85: 0.2 | F85: 6.7 | G85: 34.2 | H85: 0.04 | I85: 0.02 | J85: 0 | K85: 0 | L85: 0 | M85: 122 | N85: 49 | O85: 7 | P85: 9.4 | Q85: 31.6 | R85: 0.78 | S85: 0 | T85: 6.18 | U85: 0
A86: Пром. | B86: Хлеб пшеничный | C86: 20 | D86: 1.5 | E86: 0.2 | F86: 9.8 | G86: 46.9 | H86: 0.02 | I86: 0.01 | J86: 0 | K86: 0 | L86: 0 | M86: 99.8 | N86: 18.6 | O86: 4 | P86: 2.8 | Q86: 13 | R86: 0.22 | S86: 0.64 | T86: 1.2 | U86: 2.9
B87: Итого за Обед | C87: 700 | D87: =SUM(D80:D86) -> 25.69 | E87: =SUM(E80:E86) -> 23.97 | F87: 83.43 | G87: 654.4 | H87: 0.3 | I87: 0.19 | J87: 184.98 | K87: 0.09 | L87: 14.06 | M87: 637.77 | N87: 577.96 | O87: 129.6 | P87: 175.59 | Q87: 373.86 | R87: 8.13 | S87: 44.73 | T87: 11.24 | U87: 43.6
B88: Полдник
A89: 54-3г-2020 | B89: Макароны отварные с сыром | C89: 180 | D89: 9.5 | E89: 8.2 | F89: 34.4 | G89: 249.3 | H89: 0.07 | I89: 0.06 | J89: 40.39 | K89: 0.23 | L89: 0.05 | M89: 289.07 | N89: 68.97 | O89: 187.54 | P89: 13.05 | Q89: 120.39 | R89: 0.92 | S89: 24.8 | T89: 2.34 | U89: 12.44
A90: 54-4гн-2020 | B90: Чай с молоком и сахаром | C90: 180 | D90: 1.3 | E90: 1 | F90: 7.7 | G90: 45.2 | H90: 0.01 | I90: 0.06 | J90: 6.08 | K90: 0 | L90: 0.25 | M90: 17.43 | N90: 63.95 | O90: 91.17 | P90: 7.2 | Q90: 38.46 | R90: 0.38 | S90: 4.05 | T90: 0.79 | U90: 9
A91: Пром. | B91: Хлеб пшеничный | C91: 20 | D91: 1.5 | E91: 0.2 | F91: 9.8 | G91: 46.9 | H91: 0.02 | I91: 0.01 | J91: 0 | K91: 0 | L91: 0 | M91: 99.8 | N91: 18.6 | O91: 4 | P91: 2.8 | Q91: 13 | R91: 0.22 | S91: 0.64 | T91: 1.2 | U91: 2.9
B92: Итого за Полдник | C92: =SUM(C89:C91) -> 380 | D92: 12.3 | E92: 9.4 | F92: 51.9 | G92: 341.4 | H92: 0.1 | I92: 0.13 | J92: 46.47 | K92: 0.23 | L92: 0.3 | M92: 406.3 | N92: 151.52 | O92: 282.71 | P92: 23.05 | Q92: 171.85 | R92: 1.52 | S92: 29.49 | T92: 4.33 | U92: 24.34
B93: Итого за день | C93: =C75+C78+C87+C92 -> 1606 | D93: 58.46 | E93: 57.72 | F93: 161.91 | G93: 1403 | H93: 0.56 | I93: 1.02 | J93: 471.67 | K93: 2.79 | L93: 17.34 | M93: 1508.53 | N93: 1197.62 | O93: 780.25 | P93: 247.82 | Q93: 931.95 | R93: 12.97 | S93: 137.85 | T93: 49.39 | U93: 172.44
A95: 4 день , 1 неделя
A96: № рецептуры | B96: Название блюда | C96: Масса | D96: Белки | E96: Жиры | F96: Углеводы | G96: Энергетическая ценность | H96: B1 | I96: B2 | J96: A | K96: D | L96: C | M96: Na | N96: K | O96: Ca | P96: Mg | Q96: P | R96: Fe | S96: I | T96: Se | U96: F
C97: г | D97: г | E97: г | F97: г | G97: ккал | H97: мг | I97: мг | J97: мкг рет.экв | K97: мкг | L97: мг | M97: мг | N97: мг | O97: мг | P97: мг | Q97: мг | R97: мг | S97: мкг | T97: мкг | U97: мкг
B98: Четверг, 1 неделя
B99: Завтрак | C99: 3-7
A100: 54-1з-2020 | B100: Сыр твердых сортов в нарезке | C100: 10 | D100: 2.3 | E100: 3 | F100: 0 | G100: 35.8 | H100: 0 | I100: 0.03 | J100: 26 | K100: 0.1 | L100: 0.07 | M100: 81 | N100: 8.8 | O100: 88 | P100: 3.5 | Q100: 50 | R100: 0.1 | S100: 0 | T100: 1.45 | U100: 0
A101: 54-7к-2020 | B101: Каша манная | C101: 200 | D101: 8.2 | E101: 5 | F101: 37.1 | G101: 225.9 | H101: 0.07 | I101: 0.12 | J101: 18 | K101: 0 | L101: 0.32 | M101: 161.91 | N101: 222.82 | O101: 202.95 | P101: 24.25 | Q101: 162.18 | R101: 0.51 | S101: 18 | T101: 1.76 | U101: 32
A102: 54-2гн-2020 | B102: Чай с сахаром | C102: 180 | D102: 0.1 | E102: 0 | F102: 5.7 | G102: 23.5 | H102: 0 | I102: 0 | J102: 0.14 | K102: 0 | L102: 0.02 | M102: 0.33 | N102: 9.42 | O102: 57.51 | P102: 1.72 | Q102: 3.23 | R102: 0.34 | S102: 0 | T102: 0 | U102: 0
A103: Пром. | B103: Батон простой | C103: 20 | D103: 1.6 | E103: 0.2 | F103: 9.8 | G103: 47.5 | H103: 0.03 | I103: 0.01 | J103: 0 | K103: 0 | L103: 0 | M103: 88.6 | N103: 27.2 | O103: 4.6 | P103: 6.8 | Q103: 17.8 | R103: 0.4 | S103: 0.64 | T103: 1.2 | U103: 2.9
B104: Итого за Завтрак | C104: =SUM(C100:C103) -> 410 | D104: =SUM(D100:D103) -> 12.2 | E104: 8.2 | F104: 52.6 | G104: 332.7 | H104: 0.1 | I104: 0.16 | J104: 44.14 | K104: 0.1 | L104: 0.41 | M104: 331.84 | N104: 268.24 | O104: 353.06 | P104: 36.27 | Q104: 233.21 | R104: 1.35 | S104: 18.64 | T104: 4.41 | U104: 34.9
B105: Второй завтрак
A106: Пром. | B106: Сок яблочный | C106: 150 | D106: 0.8 | E106: 0.2 | F106: 15.2 | G106: 65 | H106: 0.02 | I106: 0.02 | J106: 0 | K106: 0 | L106: 3 | M106: 9 | N106: 180 | O106: 10.5 | P106: 6 | Q106: 10.5 | R106: 2.1 | S106: 0 | T106: 0 | U106: 0
B107: Итого за Второй завтрак | C107: =C106 -> 150 | D107: =D106 -> 0.8 | E107: 0.2 | F107: 15.2 | G107: 65 | H107: 0.02 | I107: 0.02 | J107: 0 | K107: 0 | L107: 3 | M107: 9 | N107: 180 | O107: 10.5 | P107: 6 | Q107: 10.5 | R107: 2.1 | S107: 0 | T107: 0 | U107: 0
B108: Обед
A109: 54-11з-2020 | B109: Салат из моркови с яблоками и растительным маслом | C109: 50 | D109: 0.46 | E109: 5.09 | F109: 3.57 | G109: 62 | H109: 0.01 | I109: 0.02 | J109: 366.45 | K109: 0 | L109: 2 | M109: 57 | N109: 86 | O109: 10 | P109: 11 | Q109: 16 | R109: 0.5 | S109: 8.5 | T109: 0 | U109: 17.98
A110: 54-7с-2020 | B110: Суп картофельный с вермишелью | C110: 200 | D110: 5.2 | E110: 2.8 | F110: 18.5 | G110: 119.6 | H110: 0.09 | I110: 0.05 | J110: 97.51 | K110: 0 | L110: 6.89 | M110: 93.01 | N110: 410.42 | O110: 13.73 | P110: 20.84 | Q110: 54.56 | R110: 0.86 | S110: 16.76 | T110: 0.23 | U110: 32.72
A111: 54-21г-2020 | B111: Горошница | C111: 150 | D111: 14.5 | E111: 1.3 | F111: 33.8 | G111: 204.8 | H111: 0.44 | I111: 0.09 | J111: 0.9 | K111: 0 | L111: 0 | M111: 165.91 | N111: 543.48 | O111: 124.95 | P111: 69.91 | Q111: 215 | R111: 4.45 | S111: 23.83 | T111: 8.65 | U111: 22.5
A112: № Т/К 278 | B112: Зразы рубленые из кур | C112: 70 | D112: 9.5 | E112: 15.6 | F112: 8.9 | G112: 214.9 | H112: 0 | I112: 0 | J112: 0 | K112: 0 | L112: 1 | M112: 0 | N112: 0 | O112: 18.3 | P112: 15.7 | Q112: 103.2 | R112: 1.7 | S112: 0 | T112: 0 | U112: 0
A113: 54-3гн -2020 | B113: Кисель | C113: 180 | D113: 0 | E113: 0 | F113: 11.4 | G113: 45.5 | H113: 0.03 | I113: 0.04 | J113: 11.25 | K113: 0 | L113: 1.9 | M113: 0.11 | N113: 1.42 | O113: 52.5 | P113: 0.12 | Q113: 0.09 | R113: 0.03 | S113: 0 | T113: 0.01 | U113: 0
A114: Пром. | B114: Хлеб пшеничный | C114: 20 | D114: 1.5 | E114: 0.2 | F114: 9.8 | G114: 46.9 | H114: 0.02 | I114: 0.01 | J114: 0 | K114: 0 | L114: 0 | M114: 99.8 | N114: 18.6 | O114: 4 | P114: 2.8 | Q114: 13 | R114: 0.22 | S114: 0.64 | T114: 1.2 | U114: 2.9
A115: Пром. | B115: Хлеб ржаной | C115: 20 | D115: 1.3 | E115: 0.2 | F115: 6.7 | G115: 34.2 | H115: 0.04 | I115: 0.02 | J115: 0 | K115: 0 | L115: 0 | M115: 122 | N115: 49 | O115: 7 | P115: 9.4 | Q115: 31.6 | R115: 0.78 | S115: 0 | T115: 6.18 | U115: 0
B116: Итого за Обед | C116: =SUM(C109:C115) -> 690 | D116: =SUM(D109:D115) -> 32.46 | E116: =SUM(E109:E115) -> 25.19 | F116: 92.67 | G116: 727.9 | H116: 0.63 | I116: 0.23 | J116: 476.11 | K116: 0 | L116: 11.79 | M116: 537.83 | N116: 1108.92 | O116: 230.48 | P116: 129.77 | Q116: 433.45 | R116: 8.54 | S116: 49.73 | T116: 16.27 | U116: 76.1
B117: Полдник
A118: 54-6т-2020 | B118: Сырники | C118: 150 | D118: 29.5 | E118: 8.6 | F118: 24.6 | G118: 293.6 | H118: 0.07 | I118: 0.31 | J118: 43.14 | K118: 0.14 | L118: 0.28 | M118: 137.7 | N118: 158.83 | O118: 206.18 | P118: 31.1 | Q118: 285.69 | R118: 0.82 | S118: 25.75 | T118: 37.55 | U118: 51.11
A119: 54-1хн-2020 | B119: Компот из смеси сухофруктов | C119: 180 | D119: 0.4 | E119: 0 | F119: 17.8 | G119: 72.9 | H119: 0 | I119: 0 | J119: 13.5 | K119: 0 | L119: 0.02 | M119: 0.05 | N119: 0.16 | O119: 97.27 | P119: 1.9 | Q119: 3.88 | R119: 0.08 | S119: 0 | T119: 0 | U119: 0
A120: Пром. | B120: Хлеб пшеничный | C120: 20 | D120: 1.5 | E120: 0.2 | F120: 9.8 | G120: 46.9 | H120: 0.02 | I120: 0.01 | J120: 0 | K120: 0 | L120: 0 | M120: 99.8 | N120: 18.6 | O120: 4 | P120: 2.8 | Q120: 13 | R120: 0.22 | S120: 0.64 | T120: 1.2 | U120: 2.9
B121: Итого за Полдник | C121: =C118+C119+C120 -> 350 | D121: =D118+D119+D120 -> 31.4 | E121: 8.8 | F121: 52.2 | G121: 413.4 | H121: 0.09 | I121: 0.32 | J121: 56.64 | K121: 0.14 | L121: 0.3 | M121: 237.55 | N121: 177.59 | O121: 307.45 | P121: 35.8 | Q121: 302.57 | R121: 1.12 | S121: 26.39 | T121: 38.75 | U121: 54.01
B122: Итого за день | C122: =C104+C107+C116+C121 -> 1600 | D122: 76.86 | E122: 42.39 | F122: 212.67 | G122: 1539 | H122: 0.84 | I122: 0.73 | J122: 576.89 | K122: 0.24 | L122: 15.5 | M122: 1116.22 | N122: 1734.75 | O122: 901.49 | P122: 207.84 | Q122: 979.73 | R122: 13.11 | S122: 94.76 | T122: 59.43 | U122: 165.01
A124: 5 день , 1 неделя
A125: № рецептуры | B125: Название блюда | C125: Масса | D125: Белки | E125: Жиры | F125: Углеводы | G125: Энергетическая ценность | H125: B1 | I125: B2 | J125: A | K125: D | L125: C | M125: Na | N125: K | O125: Ca | P125: Mg | Q125: P | R125: Fe | S125: I | T125: Se | U125: F
C126: г | D126: г | E126: г | F126: г | G126: ккал | H126: мг | I126: мг | J126: мкг рет.экв | K126: мкг | L126: мг | M126: мг | N126: мг | O126: мг | P126: мг | Q126: мг | R126: мг | S126: мкг | T126: мкг | U126: мкг
B127: Пятница, 1 неделя
B128: Завтрак | C128: 3-7
A129: 54-19з-2020 | B129: Масло сливочное (порциями) | C129: 10 | D129: 0.1 | E129: 7.3 | F129: 0.1 | G129: 66.1 | H129: 0 | I129: 0.01 | J129: 45 | K129: 0.13 | L129: 0 | M129: 1.5 | N129: 3 | O129: 2.4 | P129: 0 | Q129: 3 | R129: 0.02 | S129: 0 | T129: 0.1 | U129: 0.28
A130: 54-19к-2020 | B130: Суп молочный с макаронными изделиями | C130: 200 | D130: 5.5 | E130: 4.5 | F130: 17.9 | G130: 134.2 | H130: 0.06 | I130: 0.18 | J130: 23.88 | K130: 0.03 | L130: 0.73 | M130: 112.64 | N130: 186.54 | O130: 170.09 | P130: 19.32 | Q130: 122.38 | R130: 0.36 | S130: 20.84 | T130: 2.48 | U130: 31.74
A131: 54-3гн-2020 | B131: Чай с лимоном и сахаром | C131: 186 | D131: 0.1 | E131: 0 | F131: 5.9 | G131: 24.5 | H131: 0 | I131: 0 | J131: 0.21 | K131: 0 | L131: 1.03 | M131: 0.86 | N131: 17.94 | O131: 58.34 | P131: 2.38 | Q131: 4.44 | R131: 0.37 | S131: 0.01 | T131: 0.02 | U131: 0.63
A132: Пром. | B132: Батон простой | C132: 20 | D132: 1.6 | E132: 0.2 | F132: 9.8 | G132: 47.5 | H132: 0.03 | I132: 0.01 | J132: 0 | K132: 0 | L132: 0 | M132: 88.6 | N132: 27.2 | O132: 4.6 | P132: 6.8 | Q132: 17.8 | R132: 0.4 | S132: 0.64 | T132: 1.2 | U132: 2.9
B133: Итого за Завтрак | C133: =SUM(C129:C132) -> 416 | D133: =SUM(D129:D132) -> 7.3 | E133: 12 | F133: 33.7 | G133: 272.3 | H133: 0.09 | I133: 0.2 | J133: 69.09 | K133: 0.16 | L133: 1.76 | M133: 203.6 | N133: 234.68 | O133: 235.43 | P133: 28.5 | Q133: 147.62 | R133: 1.15 | S133: 21.49 | T133: 3.8 | U133: 35.55
B134: Второй завтрак
A135: Пром. | B135: Молоко 2.5% | C135: 150 | D135: 4.4 | E135: 3.8 | F135: 7.2 | G135: 80 | H135: 0.06 | I135: 0.23 | J135: 33 | K135: 0 | L135: 1.95 | M135: 75 | N135: 219 | O135: 180 | P135: 21 | Q135: 135 | R135: 0.15 | S135: 13.5 | T135: 3 | U135: 30
B136: Итого за Второй завтрак | C136: 150 | D136: 4.4 | E136: 3.8 | F136: 7.2 | G136: 80 | H136: 0.06 | I136: 0.23 | J136: 33 | K136: 0 | L136: 1.95 | M136: 75 | N136: 219 | O136: 180 | P136: 21 | Q136: 135 | R136: 0.15 | S136: 13.5 | T136: 3 | U136: 30
B137: Обед
A138: 54-16з-2020 | B138: Винегрет с растительным маслом | C138: 50 | D138: 0.59 | E138: 4.47 | F138: 3.33 | G138: 56 | H138: 0.01 | I138: 0.01 | J138: 60.74 | K138: 0 | L138: 1 | M138: 168 | N138: 107 | O138: 9 | P138: 8 | Q138: 18 | R138: 0.4 | S138: 6.56 | T138: 0 | U138: 9.88
A139: 54-2с-2020 | B139: Борщ с капустой и картофелем со сметаной | C139: 200 | D139: 4.7 | E139: 5.7 | F139: 10.1 | G139: 110.4 | H139: 0.03 | I139: 0.04 | J139: 134.66 | K139: 0 | L139: 6.77 | M139: 107.03 | N139: 264.63 | O139: 33.68 | P139: 19.22 | Q139: 42.64 | R139: 0.87 | S139: 17.16 | T139: 0.4 | U139: 22.62
A140: 54-11г-2020 | B140: Картофельное пюре | C140: 150 | D140: 3.1 | E140: 5.3 | F140: 19.8 | G140: 139.4 | H140: 0.12 | I140: 0.11 | J140: 23.8 | K140: 0.09 | L140: 10.2 | M140: 161.78 | N140: 624.83 | O140: 39.49 | P140: 28.23 | Q140: 84.47 | R140: 1.03 | S140: 28.46 | T140: 0.78 | U140: 42.79
A141: 54-7р-2020 | B141: Рыба, припущенная в молоке (минтай) | C141: 75 | D141: 9.8 | E141: 5.8 | F141: 2.1 | G141: 100 | H141: 0.06 | I141: 0.08 | J141: 6.77 | K141: 0.12 | L141: 0.84 | M141: 82.98 | N141: 260.04 | O141: 51.16 | P141: 33.5 | Q141: 151.85 | R141: 0.55 | S141: 100.11 | T141: 8.88 | U141: 429.45
A142: 54-2хн-2020 | B142: Компот из кураги | C142: 180 | D142: 0.9 | E142: 0 | F142: 14.1 | G142: 60.2 | H142: 0.01 | I142: 0.03 | J142: 62.96 | K142: 0 | L142: 0.29 | M142: 2.37 | N142: 256.68 | O142: 81.45 | P142: 16.44 | Q142: 22.86 | R142: 0.52 | S142: 0 | T142: 0 | U142: 0
A143: Пром. | B143: Хлеб ржаной | C143: 20 | D143: 1.3 | E143: 0.2 | F143: 6.7 | G143: 34.2 | H143: 0.04 | I143: 0.02 | J143: 0 | K143: 0 | L143: 0 | M143: 122 | N143: 49 | O143: 7 | P143: 9.4 | Q143: 31.6 | R143: 0.78 | S143: 0 | T143: 6.18 | U143: 0
A144: Пром. | B144: Хлеб пшеничный | C144: 20 | D144: 1.5 | E144: 0.2 | F144: 9.8 | G144: 46.9 | H144: 0.02 | I144: 0.01 | J144: 0 | K144: 0 | L144: 0 | M144: 99.8 | N144: 18.6 | O144: 4 | P144: 2.8 | Q144: 13 | R144: 0.22 | S144: 0.64 | T144: 1.2 | U144: 2.9
B145: Итого за Обед | C145: =SUM(C138:C144) -> 695 | D145: =SUM(D138:D144) -> 21.89 | E145: 21.67 | F145: 65.93 | G145: 547.1 | H145: 0.29 | I145: 0.3 | J145: 288.93 | K145: 0.21 | L145: 19.1 | M145: 743.96 | N145: 1580.78 | O145: 225.78 | P145: 117.59 | Q145: 364.42 | R145: 4.37 | S145: 152.93 | T145: 17.44 | U145: 507.64
B146: Полдник
A147: 54-13к-2020 | B147: Каша вязкая молочная пшеничная | C147: 200 | D147: 8.1 | E147: 9.2 | F147: 38.6 | G147: 270.3 | H147: 0.14 | I147: 0.18 | J147: 40.99 | K147: 0.13 | L147: 0.55 | M147: 342.1 | N147: 226.54 | O147: 151.57 | P147: 39.2 | Q147: 206.32 | R147: 2.19 | S147: 49.55 | T147: 33.06 | U147: 21.48
A148: 54-23гн-2020 | B148: Кофейный напиток с молоком | C148: 180 | D148: 2.9 | E148: 2.2 | F148: 9.8 | G148: 70.7 | H148: 0.03 | I148: 0.11 | J148: 11.91 | K148: 0 | L148: 0.47 | M148: 34.43 | N148: 131.76 | O148: 130.44 | P148: 17.62 | Q148: 80.73 | R148: 0.44 | S148: 8.1 | T148: 1.58 | U148: 18
A149: Пром. | B149: Хлеб пшеничный | C149: 20 | D149: 1.5 | E149: 0.2 | F149: 9.8 | G149: 46.9 | H149: 0.02 | I149: 0.01 | J149: 0 | K149: 0 | L149: 0 | M149: 99.8 | N149: 18.6 | O149: 4 | P149: 2.8 | Q149: 13 | R149: 0.22 | S149: 0.64 | T149: 1.2 | U149: 2.9
A150: № Т/К 399 | B150: Блин фаршированный сгущенным молоком П/Ф (70гр) 1 шт | C150: 70 | D150: 2.8 | E150: 3.85 | F150: 18.9 | G150: 122.5 | H150: 0.08 | I150: 0.00 | J150: 0.00 | K150: 0.00 | L150: 0.00 | M150: 0.00 | N150: 0.00 | O150: 98.45 | P150: 19.24 | Q150: 42.5 | R150: 0.48 | S150: 0.00 | T150: 0.00 | U150: 0.00
B151: Итого за Полдник | C151: =SUM(C147:C150) -> 470 | D151: =SUM(D147:D150) -> 15.3 | E151: 15.45 | F151: 77.1 | G151: 510.4 | H151: 0.27 | I151: 0.3 | J151: 52.9 | K151: 0.13 | L151: 1.02 | M151: 476.33 | N151: 376.9 | O151: 384.46 | P151: 78.86 | Q151: 342.55 | R151: 3.33 | S151: 58.29 | T151: 35.84 | U151: 42.38
B152: Итого за день | C152: =C133+C136+C145+C151 -> 1731 | D152: =D133+D136+D145+D151 -> 48.89 | E152: 52.92 | F152: 183.93 | G152: 1409.8 | H152: 0.71 | I152: 1.03 | J152: 443.92 | K152: 0.5 | L152: 23.83 | M152: 1498.89 | N152: 2411.36 | O152: 1025.67 | P152: 245.95 | Q152: 989.59 | R152: 9 | S152: 246.21 | T152: 60.08 | U152: 615.57
A154: 7 день , 2 неделя
A155: № рецептуры | B155: Название блюда | C155: Масса | D155: Белки | E155: Жиры | F155: Углеводы | G155: Энергетическая ценность | H155: B1 | I155: B2 | J155: A | K155: D | L155: C | M155: Na | N155: K | O155: Ca | P155: Mg | Q155: P | R155: Fe | S155: I | T155: Se | U155: F
C156: г | D156: г | E156: г | F156: г | G156: ккал | H156: мг | I156: мг | J156: мкг рет.экв | K156: мкг | L156: мг | M156: мг | N156: мг | O156: мг | P156: мг | Q156: мг | R156: мг | S156: мкг | T156: мкг | U156: мкг
B157: Понедельник, 2 неделя
B158: Завтрак | C158: 3-7
A159: 54-3г-2020 | B159: Макароны отварные с сыром | C159: 180 | D159: 9.5 | E159: 8.2 | F159: 34.4 | G159: 249.3 | H159: 0.07 | I159: 0.06 | J159: 40.39 | K159: 0.23 | L159: 0.05 | M159: 289.07 | N159: 68.97 | O159: 187.54 | P159: 13.05 | Q159: 120.39 | R159: 0.92 | S159: 24.8 | T159: 2.34 | U159: 12.44
A160: Т/к №430 | B160: Чай с сахаром и яблоком | C160: 180 | D160: 0.2 | E160: 0 | F160: 9.4 | G160: 39 | H160: 0 | I160: 0 | J160: 0 | K160: 0 | L160: 0.4 | M160: 0 | N160: 0 | O160: 13.3 | P160: 6.2 | Q160: 8.3 | R160: 0.9 | S160: 0 | T160: 0 | U160: 0
A161: Пром. | B161: Батон простой | C161: 20 | D161: 1.6 | E161: 0.2 | F161: 9.8 | G161: 47.5 | H161: 0.03 | I161: 0.01 | J161: 0 | K161: 0 | L161: 0 | M161: 88.6 | N161: 27.2 | O161: 4.6 | P161: 6.8 | Q161: 17.8 | R161: 0.4 | S161: 0.64 | T161: 1.2 | U161: 2.9
B162: Итого за Завтрак | C162: =SUM(C159:C161) -> 380 | D162: =SUM(D159:D161) -> 11.3 | E162: =SUM(E159:E161) -> 8.4 | F162: =SUM(F159:F161) -> 53.6 | G162: =SUM(G159:G161) -> 335.8 | H162: =SUM(H159:H161) -> 0.1 | I162: =SUM(I159:I161) -> 0.07 | J162: =SUM(J159:J161) -> 40.39 | K162: =SUM(K159:K161) -> 0.23 | L162: =SUM(L159:L161) -> 0.45 | M162: =SUM(M159:M161) -> 377.67 | N162: =SUM(N159:N161) -> 96.17 | O162: =SUM(O159:O161) -> 205.44 | P162: =SUM(P159:P161) -> 26.05 | Q162: =SUM(Q159:Q161) -> 146.49 | R162: =SUM(R159:R161) -> 2.22 | S162: =SUM(S159:S161) -> 25.44 | T162: =SUM(T159:T161) -> 3.54 | U162: =SUM(U159:U161) -> 15.34
B163: Второй завтрак
A164: Пром. | B164: Сок яблочный | C164: 150 | D164: 0.8 | E164: 0.2 | F164: 15.2 | G164: 65 | H164: 0.02 | I164: 0.02 | J164: 0 | K164: 0 | L164: 3 | M164: 9 | N164: 180 | O164: 10.5 | P164: 6 | Q164: 10.5 | R164: 2.1 | S164: 0 | T164: 0 | U164: 0
B165: Итого за Второй завтрак | C165: =C164 -> 150 | D165: =D164 -> 0.8 | E165: 0.2 | F165: 15.2 | G165: 65 | H165: 0.02 | I165: 0.02 | J165: 0 | K165: 0 | L165: 3 | M165: 9 | N165: 180 | O165: 10.5 | P165: 6 | Q165: 10.5 | R165: 2.1 | S165: 0 | T165: 0 | U165: 0
B166: Обед
A167: 54-13з-2020 | B167: Салат из свеклы отварной с растительным маслом | C167: 50 | D167: 0.67 | E167: 2.24 | F167: 3.8 | G167: 38.1 | H167: 0.01 | I167: 0.02 | J167: 0.57 | K167: 0 | L167: 2 | M167: 66 | N167: 114 | O167: 16 | P167: 9 | Q167: 18 | R167: 0.6 | S167: 10 | T167: 0.3 | U167: 9.5
A168: 54-3с-2020 | B168: Рассольник Ленинградский | C168: 200 | D168: 4.8 | E168: 5.8 | F168: 13.6 | G168: 125.5 | H168: 0.06 | I168: 0.05 | J168: 103.93 | K168: 0 | L168: 5.54 | M168: 196.79 | N168: 334.95 | O168: 21.08 | P168: 19.71 | Q168: 51.39 | R168: 0.71 | S168: 16.6 | T168: 0.75 | U168: 28.28
A169: 54-13м-2020 | B169: Запеканка картофельная с говядиной | C169: 180 | D169: 21.2 | E169: 21.6 | F169: 23.8 | G169: 374.6 | H169: 0.18 | I169: 0.23 | J169: 43.55 | K169: 0.17 | L169: 11.88 | M169: 335.32 | N169: 982.46 | O169: 27.4 | P169: 50.66 | Q169: 250.8 | R169: 3.72 | S169: 51.4 | T169: 2 | U169: 110.29
A170: 54-1хн-2020 | B170: Компот из смеси сухофруктов | C170: 180 | D170: 0.4 | E170: 0 | F170: 17.8 | G170: 72.9 | H170: 0 | I170: 0 | J170: 13.5 | K170: 0 | L170: 0.02 | M170: 0.05 | N170: 0.16 | O170: 97.27 | P170: 1.9 | Q170: 3.88 | R170: 0.08 | S170: 0 | T170: 0 | U170: 0
A171: Пром. | B171: Хлеб пшеничный | C171: 20 | D171: 1.5 | E171: 0.2 | F171: 9.8 | G171: 46.9 | H171: 0.02 | I171: 0.01 | J171: 0 | K171: 0 | L171: 0 | M171: 99.8 | N171: 18.6 | O171: 4 | P171: 2.8 | Q171: 13 | R171: 0.22 | S171: 0.64 | T171: 1.2 | U171: 2.9
A172: Пром. | B172: Хлеб ржаной | C172: 20 | D172: 1.3 | E172: 0.2 | F172: 6.7 | G172: 34.2 | H172: 0.04 | I172: 0.02 | J172: 0 | K172: 0 | L172: 0 | M172: 122 | N172: 49 | O172: 7 | P172: 9.4 | Q172: 31.6 | R172: 0.78 | S172: 0 | T172: 6.18 | U172: 0
B173: Итого за Обед | C173: =SUM(C167:C172) -> 650 | D173: =SUM(D167:D172) -> 29.87 | E173: 30.04 | F173: 75.5 | G173: 692.2 | H173: 0.31 | I173: 0.33 | J173: 161.55 | K173: 0.17 | L173: 19.44 | M173: 819.96 | N173: 1499.17 | O173: 172.75 | P173: 93.47 | Q173: 368.67 | R173: 6.11 | S173: 78.64 | T173: 10.43 | U173: 150.97
B174: Полдник
A175: 54-7к-2020 | B175: Каша манная | C175: 200 | D175: 8.2 | E175: 5 | F175: 37.1 | G175: 225.9 | H175: 0.07 | I175: 0.12 | J175: 18 | K175: 0 | L175: 0.32 | M175: 161.91 | N175: 222.82 | O175: 202.95 | P175: 24.25 | Q175: 162.18 | R175: 0.51 | S175: 18 | T175: 1.76 | U175: 32
A176: 54-2гн-2020 | B176: Чай с сахаром | C176: 180 | D176: 0.1 | E176: 0 | F176: 5.7 | G176: 23.5 | H176: 0 | I176: 0 | J176: 0.14 | K176: 0 | L176: 0.02 | M176: 0.33 | N176: 9.42 | O176: 57.51 | P176: 1.72 | Q176: 3.23 | R176: 0.34 | S176: 0 | T176: 0 | U176: 0
A177: 54-10в-2020 | B177: Булочка ванильная | C177: 50 | D177: 3.9 | E177: 3.4 | F177: 25.4 | G177: 147.4 | H177: 0.05 | I177: 0.03 | J177: 15.93 | K177: 0.12 | L177: 0 | M177: 200.57 | N177: 42.12 | O177: 14.69 | P177: 5.43 | Q177: 34.11 | R177: 0.47 | S177: 27.8 | T177: 2.63 | U177: 9.19
A178: Пром. | B178: Хлеб пшеничный | C178: 20 | D178: 1.5 | E178: 0.2 | F178: 9.8 | G178: 46.9 | H178: 0.02 | I178: 0.01 | J178: 0 | K178: 0 | L178: 0 | M178: 99.8 | N178: 18.6 | O178: 4 | P178: 2.8 | Q178: 13 | R178: 0.22 | S178: 0.64 | T178: 1.2 | U178: 2.9
B179: Итого за Полдник | C179: =SUM(C175:C178) -> 450 | D179: =SUM(D175:D178) -> 13.7 | E179: 8.6 | F179: 78 | G179: 443.7 | H179: 0.14 | I179: 0.16 | J179: 34.07 | K179: 0.12 | L179: 0.34 | M179: 462.61 | N179: 292.96 | O179: 279.15 | P179: 34.2 | Q179: 212.52 | R179: 1.54 | S179: 46.44 | T179: 5.59 | U179: 44.09
B180: Итого за день | C180: =C162+C165+C173+C179 -> 1630 | D180: =D162+D165+D173+D179 -> 55.67 | E180: 47.24 | F180: 222.3 | G180: 1536.7 | H180: 0.57 | I180: 0.58 | J180: 236.01 | K180: 0.52 | L180: 23.23 | M180: 1669.24 | N180: 2068.3 | O180: 667.84 | P180: 159.72 | Q180: 738.18 | R180: 11.97 | S180: 150.52 | T180: 19.56 | U180: 210.4
A182: 8 день , 2 неделя
A183: № рецептуры | B183: Название блюда | C183: Масса | D183: Белки | E183: Жиры | F183: Углеводы | G183: Энергетическая ценность | H183: B1 | I183: B2 | J183: A | K183: D | L183: C | M183: Na | N183: K | O183: Ca | P183: Mg | Q183: P | R183: Fe | S183: I | T183: Se | U183: F
C184: г | D184: г | E184: г | F184: г | G184: ккал | H184: мг | I184: мг | J184: мкг рет.экв | K184: мкг | L184: мг | M184: мг | N184: мг | O184: мг | P184: мг | Q184: мг | R184: мг | S184: мкг | T184: мкг | U184: мкг
B185: Вторник, 2 неделя
B186: Завтрак | C186: 3-7
A187: 54-1т-2020 | B187: Запеканка из творога | C187: 150 | D187: 29.66 | E187: 12.58 | F187: 21.65 | G187: 301.2 | H187: 0.06 | I187: 0.3 | J187: 51.11 | K187: 0.16 | L187: 0 | M187: 181 | N187: 159 | O187: 223 | P187: 32 | Q187: 291 | R187: 0.8 | S187: 28.82 | T187: 39 | U187: 49.63
A188: Пром. | B188: Молоко сгущенное с сахаром | C188: 20 | D188: 1.44 | E188: 1.7 | F188: 11.1 | G188: 65.5 | H188: 0.01 | I188: 0.06 | J188: 5.64 | K188: 0 | L188: 0 | M188: 20 | N188: 61 | O188: 54 | P188: 6 | Q188: 38 | R188: 0 | S188: 1.4 | T188: 0.5 | U188: 7
A189: 54-4гн-2020 | B189: Чай с молоком и сахаром | C189: 180 | D189: 1.3 | E189: 1 | F189: 7.7 | G189: 45.2 | H189: 0.01 | I189: 0.06 | J189: 6.08 | K189: 0 | L189: 0.25 | M189: 17.43 | N189: 63.95 | O189: 91.17 | P189: 7.2 | Q189: 38.46 | R189: 0.38 | S189: 4.05 | T189: 0.79 | U189: 9
A190: Пром. | B190: Батон простой | C190: 20 | D190: 1.6 | E190: 0.2 | F190: 9.8 | G190: 47.5 | H190: 0.03 | I190: 0.01 | J190: 0 | K190: 0 | L190: 0 | M190: 88.6 | N190: 27.2 | O190: 4.6 | P190: 6.8 | Q190: 17.8 | R190: 0.4 | S190: 0.64 | T190: 1.2 | U190: 2.9
B191: Итого за Завтрак | C191: =SUM(C187:C190) -> 370 | D191: =SUM(D187:D190) -> 34 | E191: 15.48 | F191: 50.25 | G191: 459.4 | H191: 0.11 | I191: 0.43 | J191: 62.83 | K191: 0.16 | L191: 0.25 | M191: 307.03 | N191: 311.15 | O191: 372.77 | P191: 52 | Q191: 385.26 | R191: 1.58 | S191: 34.91 | T191: 41.49 | U191: 68.53
B192: Второй завтрак
A193: Пром. | B193: Молоко 2.5% | C193: 150 | D193: 4.4 | E193: 3.8 | F193: 7.2 | G193: 80 | H193: 0.06 | I193: 0.23 | J193: 33 | K193: 0 | L193: 1.95 | M193: 75 | N193: 219 | O193: 180 | P193: 21 | Q193: 135 | R193: 0.15 | S193: 13.5 | T193: 3 | U193: 30
B194: Итого за Второй завтрак | C194: 150 | D194: 4.4 | E194: 3.8 | F194: 7.2 | G194: 80 | H194: 0.06 | I194: 0.23 | J194: 33 | K194: 0 | L194: 1.95 | M194: 75 | N194: 219 | O194: 180 | P194: 21 | Q194: 135 | R194: 0.15 | S194: 13.5 | T194: 3 | U194: 30
B195: Обед
A196: 54-9з-2020 | B196: Салат из белокочанной капусты с морковью и яблоками и растительным маслом | C196: 50 | D196: 0.68 | E196: 5.08 | F196: 3.01 | G196: 60.5 | H196: 0.01 | I196: 0.02 | J196: 120.81 | K196: 0 | L196: 5 | M196: 56 | N196: 111 | O196: 17 | P196: 8 | Q196: 14 | R196: 0.4 | S196: 8.23 | T196: 0.1 | U196: 9.15
A197: 54-6с-2020 | B197: Суп картофельный с клецками | C197: 200 | D197: 4.6 | E197: 3.3 | F197: 11.4 | G197: 93.6 | H197: 0.05 | I197: 0.04 | J197: 101.43 | K197: 0.05 | L197: 3.69 | M197: 58.01 | N197: 222.12 | O197: 13.28 | P197: 12.74 | Q197: 35.97 | R197: 0.54 | S197: 10.28 | T197: 0.94 | U197: 21.22
A198: 54-12м-2020 | B198: Плов с курицей | C198: 120/60 | D198: 24.5 | E198: 7.3 | F198: 29.9 | G198: 283.2 | H198: 0.08 | I198: 0.08 | J198: 132.3 | K198: 0 | L198: 2.13 | M198: 261.78 | N198: 344.93 | O198: 67.87 | P198: 97.49 | Q198: 210.16 | R198: 1.81 | S198: 35.79 | T198: 24.78 | U198: 152.39
A199: 54-33хн-2020 | B199: Напиток апельсиновый | C199: 180 | D199: 0.2 | E199: 0 | F199: 7.2 | G199: 29.7 | H199: 0.01 | I199: 0 | J199: 0.95 | K199: 0 | L199: 4.75 | M199: 2 | N199: 32.53 | O199: 67.02 | P199: 2.24 | Q199: 3.96 | R199: 0.07 | S199: 0.4 | T199: 0.09 | U199: 3.37
A200: Пром. | B200: Хлеб пшеничный | C200: 20 | D200: 1.5 | E200: 0.2 | F200: 9.8 | G200: 46.9 | H200: 0.02 | I200: 0.01 | J200: 0 | K200: 0 | L200: 0 | M200: 99.8 | N200: 18.6 | O200: 4 | P200: 2.8 | Q200: 13 | R200: 0.22 | S200: 0.64 | T200: 1.2 | U200: 2.9
A201: Пром. | B201: Хлеб ржаной | C201: 20 | D201: 1.3 | E201: 0.2 | F201: 6.7 | G201: 34.2 | H201: 0.04 | I201: 0.02 | J201: 0 | K201: 0 | L201: 0 | M201: 122 | N201: 49 | O201: 7 | P201: 9.4 | Q201: 31.6 | R201: 0.78 | S201: 0 | T201: 6.18 | U201: 0
B202: Итого за Обед | C202: 650 | D202: =SUM(D196:D201) -> 32.78 | E202: 16.08 | F202: 68.01 | G202: 548.1 | H202: 0.21 | I202: 0.17 | J202: 355.49 | K202: 0.05 | L202: 15.57 | M202: 599.59 | N202: 778.18 | O202: 176.17 | P202: 132.67 | Q202: 308.69 | R202: 3.82 | S202: 55.34 | T202: 33.29 | U202: 189.03
B203: Полдник
A204: 54-13к-2020 | B204: Каша вязкая молочная пшеничная | C204: 200 | D204: 8.1 | E204: 9.2 | F204: 38.6 | G204: 270.3 | H204: 0.14 | I204: 0.18 | J204: 40.99 | K204: 0.13 | L204: 0.55 | M204: 342.1 | N204: 226.54 | O204: 151.57 | P204: 39.2 | Q204: 206.32 | R204: 2.19 | S204: 49.55 | T204: 33.06 | U204: 21.48
A205: 54-3гн-2020 | B205: Чай с лимоном и сахаром | C205: 186 | D205: 0.2 | E205: 0 | F205: 6 | G205: 25.1 | H205: 0 | I205: 0.01 | J205: 0.35 | K205: 0 | L205: 1.04 | M205: 1.14 | N205: 27.21 | O205: 60.3 | P205: 4.1 | Q205: 7.67 | R205: 0.69 | S205: 0.01 | T205: 0.02 | U205: 0.63
A206: Пром. | B206: Хлеб пшеничный | C206: 20 | D206: 1.5 | E206: 0.2 | F206: 9.8 | G206: 46.9 | H206: 0.02 | I206: 0.01 | J206: 0 | K206: 0 | L206: 0 | M206: 99.8 | N206: 18.6 | O206: 4 | P206: 2.8 | Q206: 13 | R206: 0.22 | S206: 0.64 | T206: 1.2 | U206: 2.9
A207: Пром. | B207: Сушка простая | C207: 12 | D207: 1.31 | E207: 0.16 | F207: 8.26 | G207: 39.7 | H207: 0.02 | I207: 0.01 | J207: 0 | K207: 0 | L207: 0 | M207: 55 | N207: 18 | O207: 3 | P207: 5 | Q207: 13 | R207: 0.3 | S207: 0 | T207: 0 | U207: 0
B208: Итого за Полдник | C208: =SUM(C204:C207) -> 418 | D208: 11.11 | E208: 9.56 | F208: 62.66 | G208: 382 | H208: 0.18 | I208: 0.21 | J208: 41.34 | K208: 0.13 | L208: 1.59 | M208: 498.04 | N208: 290.35 | O208: 218.87 | P208: 51.1 | Q208: 239.99 | R208: 3.4 | S208: 50.2 | T208: 34.28 | U208: 25.01
B209: Итого за день | C209: =C191+C194+C202+C208 -> 1588 | D209: 82.29 | E209: 44.92 | F209: 188.12 | G209: 1469.5 | H209: 0.56 | I209: 1.04 | J209: 492.66 | K209: 0.34 | L209: 19.36 | M209: 1479.66 | N209: 1598.68 | O209: 947.81 | P209: 256.77 | Q209: 1068.94 | R209: 8.95 | S209: 153.95 | T209: 112.06 | U209: 312.57
... 95 more rows
